Cogmind - Beta 16 @@@ ROGUE MODE // 2025.11.11 @ 21:32:04 Player: C0-2MO Result: Destroyed by Executioner with Helical Railgun Performance ------------- Evolutions (7) 3500 Regions Visited (21) 4200 Robots Destroyed (245) 1225 Value Destroyed (12571) 12571 Prototype IDs (133) 2660 Alien Tech Used (4) 800 Bonus (16478) 16478 TOTAL SCORE: 41434 Bonus ------- High Alert Combat Kills 7508 Follower Combat Kills 698 Entered Garrisons 200 Delivered SUBCON Basin 2000 Registered with UFD 300 Met Optimus in HQ 500 Met Zhirov 300 Met Warlord at Base 500 MAIN.C Attacked Warlord 500 Warlord Defense Kills 848 Used Core Reset Matrix 3000 Met Optimus at Protoforge 1000 Friendly Fire -876 Cogmind --------- Core Integrity 0/1300 Matter 286/300 Energy 150/150 System Corruption 3% Temperature Cool (0) Movement Flying (25) Location -3/Protoforge Parts ------- > --- POWER (2) -------- Micro Antimatter Reactor > --- PROPULSION (8) --- Impulse Thruster Array Impulse Thruster Array Impulse Thruster Array Experimental Surge Thruster Experimental Surge Thruster > --- UTILITY (9) ------ 0bPrime Scrap Suit Experimental Optical Array Experimental Targeting Computer Experimental Targeting Computer Experimental Targeting Computer Experimental Core Analyzer Heavy Armor Plating > --- WEAPON (2) ------- Overtuned Bore Cannon Overtuned Bore Cannon > --- INVENTORY (5) ---- Concept Antigrav Storage Unit Graphene Brace Subatomic Replicator Concept Disintegration Ray (50) Micro-nuke Launcher Peak State ------------ > --- POWER ------------ Micro Antimatter Reactor > --- PROPULSION ------- Impulse Thruster Array Impulse Thruster Array Experimental Surge Thruster Experimental Surge Thruster Experimental Surge Thruster Experimental Surge Thruster > --- UTILITY ---------- Concept Antigrav Storage Unit Concept Chromion Battery Plexus Tether Experimental Optical Array Experimental Targeting Computer Experimental Reaction Control System Centrium Light Armor Plating Graphene Brace Tech Extrapolator > --- WEAPON ----------- Core Cannon > --- INVENTORY -------- Micro Antimatter Reactor Impulse Thruster Array Concept Matter Streamer Advanced Trap Extractor Transdimensional Reconstructor Subatomic Replicator Concept Disintegration Ray Concept Plasma Driver Concept XC Strikerail Concept XC Strikerail Micro-nuke Launcher Power Sword UFD Drillbomb [Rating: 211] Favorites ----------- Power Micro Antimatter Reactor Engine Backup Power III Power Core Micro Fission Core Reactor Micro Antimatter Reactor Propulsion Impulse Thruster Array Treads Spiked Treads Wheel Compact Wheel Hover Unit Combat Gravmag System Flight Unit Impulse Thruster Array Utility Tech Extrapolator Device Advanced Sensor Array Storage Medium Storage Unit Processor Tech Extrapolator Hackware Hacking Suite Protection Centrium Light Armor Plating Weapon Improved Remote Datajack Energy Gun Subdweller Laser Energy Cannon Core Cannon Ballistic Gun Battle Rifle Ballistic Cannon Overtuned Bore Cannon Launcher Subdweller Shrapnel Launcher Special Weapon Improved Remote Datajack Slashing Weapon Ripper Piercing Weapon Plasma Lance Special Melee Weapon Datajack Build | -11 -10 -10 -7 -7 -5 -5 -5 -5 -5 -5 -4 -4 -4 -4 -4 -4 -4 -3 -3 -3 -3 ------- Run | Yrd Mat Sub Rec Scr Fac Gar Fac Upp Upp War Pro Fac Was Fac Upp Upp Zhi Pro Res Qua Frg Slots Evolved 14 | . . . . . 10 . . . . . . 2 . . . . . . 2 . . Power 1 | . . . . . 1 . . . . . . . . . . . . . . . . Propulsion 6 | . . . . . 4 . . . . . . . . . . . . . 2 . . Utility 7 | . . . . . 5 . . . . . . 2 . . . . . . . . . Weapon . | . . . . . . . . . . . . . . . . . . . . . . Parts Attached 236 | 8 4 19 4 1 44 3 6 1 2 21 1 10 1 15 1 1 6 4 9 8 67 Power 31 | 1 . 2 . . 7 1 . . . 2 . 2 1 3 . . 1 1 3 . 7 Engine 8 | 1 . 2 . . 3 . . . . 1 . . . . . . . . 1 . . Core 10 | . . . . . 4 1 . . . . . 1 . 3 . . . . . . 1 Reactor 13 | . . . . . . . . . . 1 . 1 1 . . . 1 1 2 . 6 Propulsion 66 | 2 1 5 2 . 16 1 2 . . 9 . 1 . 3 . . 4 1 1 . 18 Treads 5 | 1 . 4 . . . . . . . . . . . . . . . . . . . Leg . | . . . . . . . . . . . . . . . . . . . . . . Wheel 5 | 1 1 1 2 . . . . . . . . . . . . . . . . . . Hover 2 | . . . . . . 1 1 . . . . . . . . . . . . . . Flight 54 | . . . . . 16 . 1 . . 9 . 1 . 3 . . 4 1 1 . 18 Utility 87 | 3 . 4 . . 15 . 2 . 1 5 1 6 . 8 . 1 1 2 4 7 27 Device 35 | 2 . 2 . . 5 . 1 . . 2 1 3 . 5 . . . 2 1 4 7 Storage 11 | 1 . 1 . . 2 . . . . . . 1 . . . . 1 . 1 1 3 Processor 20 | . . . . . 4 . 1 . 1 1 . . . . . . . . . . 13 Hackware 13 | . . . . . 3 . . . . 1 . 2 . 3 . 1 . . 1 2 . Protection 8 | . . 1 . . 1 . . . . 1 . . . . . . . . 1 . 4 Artifact . | . . . . . . . . . . . . . . . . . . . . . . Weapon 52 | 2 3 8 2 1 6 1 2 1 1 5 . 1 . 1 1 . . . 1 1 15 Energy Gun 10 | 2 2 2 . . . . . . . 4 . . . . . . . . . . . Energy Cannon 2 | . . . . . . . . . . . . . . . . . . . . . 2 Ballistic Gun 11 | . . 3 1 . 1 . . . . . . . . . . . . . . . 6 Ballistic Cannon 9 | . . 1 1 . 1 . 1 . . . . . . . . . . . . . 5 Launcher 3 | . . 1 . . 1 . . . . . . . . . 1 . . . . . . Special Weapon 6 | . 1 . . 1 1 1 . . . . . 1 . 1 . . . . . . . Impact Weapon . | . . . . . . . . . . . . . . . . . . . . . . Slashing Weapon 6 | . . 1 . . . . . 1 . . . . . . . . . . 1 1 2 Piercing Weapon 2 | . . . . . . . 1 . . 1 . . . . . . . . . . . Special Melee Weapon 3 | . . . . . 2 . . . 1 . . . . . . . . . . . . Unidentified Prototypes 35 | . . . . 1 5 . . . . 8 . 1 . 2 . . 3 . 2 5 8 Corrupted Parts 2 | . . . . . . . . . . 2 . . . . . . . . . . . System Corruption 3 | . . . . . . . . . . 3 . . . . . . . . . . . Parts Lost 71 | . . 9 . . 8 8 3 . . 5 . . . 7 1 . . . 2 2 26 Power 15 | . . 2 . . 3 1 1 . . . . . . 2 1 . . . . . 5 Propulsion 33 | . . 3 . . 4 5 2 . . 3 . . . 4 . . . . . . 12 Utility 14 | . . 2 . . . 1 . . . . . . . 1 . . . . 2 2 6 Weapon 9 | . . 2 . . 1 1 . . . 2 . . . . . . . . . . 3 Highest Loss Streak 5 | . . 4 . . 4 4 1 . . 3 . . . 4 1 . . . 1 2 5 To Critical Strikes . | . . . . . . . . . . . . . . . . . . . . . . Average Backups 8 | 3 7 4 4 13 9 9 4 5 5 4 5 7 9 9 9 9 10 10 9 9 11 Power . | . . . . . . 1 . . . . . 1 1 1 1 1 1 1 1 1 1 Propulsion 1 | 1 1 1 . 2 1 . . . . . 2 2 2 1 1 1 1 1 . 1 . Utility 2 | . 1 . . 5 4 3 3 3 3 2 2 3 5 4 5 5 5 5 4 3 2 Weapon 2 | 1 4 2 4 4 2 1 . . . . . . 1 1 1 . 1 1 1 1 4 Tool/Special . | . . . . . . . . . . . . . . . . . . . . . . Unused Backups 26 | . 3 6 . 1 2 3 . . . . . 1 . 2 . . . . 2 2 4 Power 2 | . . . . . . 1 . . . . . . . . . . . . . . 1 Propulsion 2 | . . 1 . . . . . . . . . 1 . . . . . . . . . Utility 7 | . . . . . 2 1 . . . . . . . 1 . . . . 2 1 . Weapon 11 | . 3 5 . 1 . . . . . . . . . 1 . . . . . . 1 Tool/Special 4 | . . . . . . 1 . . . . . . . . . . . . . 1 2 Average Slot Usage (%) 83 | . 100 91 100 66 87 84 63 58 65 80 94 93 94 91 93 94 95 100 93 92 73 Engine 3 | . 14 7 14 1 3 1 3 5 5 6 5 5 5 1 . . . . . . . Core 1 | . . . . . 3 7 1 . . . . 2 3 5 9 10 10 10 3 4 . Reactor 1 | . . . . . . . . . . 1 5 2 1 2 . . . . 3 4 3 Treads 5 | . 14 26 6 . . . . . . . . . . . . . . . . . . Wheel 4 | . 14 1 21 28 . . . . . . . . . . . . . . . . . Flight 16 | . . . . . 32 26 11 5 5 14 29 26 26 25 26 26 28 31 32 33 23 Device 9 | . 14 8 14 14 5 5 5 5 5 5 5 12 10 13 10 10 12 15 13 10 7 Storage 7 | . 14 14 14 14 5 4 . . . . . 4 5 5 5 5 5 5 4 4 5 Processor 10 | . . . . . 11 17 18 17 19 22 17 15 15 15 15 15 15 15 14 6 19 Hackware 4 | . . . . . 10 9 5 5 5 5 11 7 10 10 10 10 10 10 9 14 1 Protection 2 | . . 3 . . 1 . . . . . 4 5 5 . 4 5 1 . . 3 2 Energy Gun 3 | . 26 12 . . . . 2 . . 1 5 1 . . . . . . . . . Ballistic Gun 2 | . . 6 12 1 . . . . . . . . . . . . . . . . . Ballistic Cannon 2 | . . 7 3 . . . 2 . . . . . . . . . . . . . 2 Special Weapon 1 | . 1 . . 4 . . . . . . . 3 5 5 5 4 5 5 4 2 . Slashing Weapon 1 | . . 1 10 . 4 3 . 1 5 4 . . . . . . . . 3 3 . Peak Build Rating 211 | 7 9 31 33 25 94 88 71 58 61 109 109 125 119 126 127 129 128 127 144 149 211 Average Rating 89 | 5 8 27 31 13 74 81 59 54 57 75 108 117 118 116 125 128 123 123 134 138 166 On Entrance 80 | . 7 9 30 14 24 87 55 54 54 61 109 109 118 119 124 127 128 125 124 134 149 Avg Prop Armor Cover (%) 6 | 15 13 9 . . 3 5 6 11 10 8 . . . 2 2 2 2 2 . 2 . Naked Turns . | . . . . . . . . . . . . . . . . . . . . . . Heaviest Build 64 | 15 17 57 56 55 55 28 14 5 6 26 26 38 32 39 35 42 35 33 40 40 64 Greatest Support 64 | 16 20 40 40 32 39 37 18 6 6 43 46 46 46 46 49 46 46 41 64 64 64 Greatest Overweight (x) 3 | . 1 3 3 1 3 1 1 . . 1 . . . . . . . . . . 1 Average Overweight (x) . | . . 1 1 1 . . . . . . . . . . . . . . . . . Largest Inventory Capacity 25 | 8 8 20 20 20 20 10 5 5 5 5 5 10 10 10 10 10 10 10 10 10 25 Average Capacity 15 | 7 8 19 20 20 10 9 5 5 5 5 5 9 10 10 10 10 10 10 10 10 20 Most Carried 25 | 4 8 20 20 20 17 10 5 5 5 5 5 10 10 10 10 10 10 10 10 10 25 Average Carried 12 | 3 7 19 19 13 9 9 4 5 5 4 5 8 9 9 9 9 9 9 9 9 14 Final Capacity 20 | 8 8 20 20 20 10 5 5 5 5 5 5 10 10 10 10 10 10 10 10 10 5 Final Carried 18 | 4 8 18 6 17 10 5 5 5 5 5 5 10 10 10 10 10 10 10 10 10 5 Scrap Suit Usage (%) 1 | . . . . . . . . . . . . . . . . . . . . . 3 Class Distribution -------------------- 28% | Mutant 17% | Hacker-Scout 15% | Scavenger-Mutant 13% | Scavenger-Sprinter 6% | Hacker-Sprinter 6% | Scout 4% | Scavenger-Scout Dominant Class ---------------- Mutant | -10/Materials Mutant | -10/Subcaves Scavenger-Mutant | -7/Recycling Mutant | -7/Scraptown Hacker-Scout | -5/Factory Hacker-Scout | -5/Garrison Scout | -5/Factory Scout | -5/Upper Caves Scout | -5/Upper Caves Commander-Scout | -5/Warlord Scavenger-Scout | -4/Proximity Caves Scavenger-Scout | -4/Factory Hacker-Scout | -4/Waste Hacker-Ninja | -4/Factory Hacker-Scout | -4/Upper Caves Hacker-Scout | -4/Upper Caves Hacker-Scout | -4/Zhirov Hacker-Scout | -3/Proximity Caves Hacker-Scout | -3/Research Hacker-Sprinter | -3/Quarantine Scavenger-Sprinter | -3/Protoforge Resources | -11 -10 -10 -7 -7 -5 -5 -5 -5 -5 -5 -4 -4 -4 -4 -4 -4 -4 -3 -3 -3 -3 ----------- Run | Yrd Mat Sub Rec Scr Fac Gar Fac Upp Upp War Pro Fac Was Fac Upp Upp Zhi Pro Res Qua Frg Matter Collected 10465 | 270 40 492 210 175 758 121 121 220 20 255 20 200 10 287 102 109 201 69 175 408 6202 Remotely 867 | 10 . . . . . . . . . . . . . . . . . . . . 857 Salvage Created 12656 | 256 308 687 205 . 892 142 34 215 . 346 30 405 . 379 . 23 317 66 195 515 7641 Parts 576 | 19 15 42 6 . 45 3 1 2 . 7 3 20 . 14 . 3 6 7 14 17 352 Haulers Intercepted 8 | . . . . . 2 . . . . . . 2 . 2 . . . . . 2 . Recyclers Shooed 5 | 2 . . . . 3 . . . . . . . . . . . . . . . . Parts Field Recycled . | . . . . . . . . . . . . . . . . . . . . . . Retrieved Matter . | . . . . . . . . . . . . . . . . . . . . . . Parts Self-Destructed 25 | . . 11 . . . . . 1 . . 2 . . . . . 5 6 . . . Prevented 4 | . . . . . . . . 3 . . 1 . . . . . . . . . . Parts Restored . | . . . . . . . . . . . . . . . . . . . . . . Kills | -11 -10 -10 -7 -7 -5 -5 -5 -5 -5 -5 -4 -4 -4 -4 -4 -4 -4 -3 -3 -3 -3 ------- Run | Yrd Mat Sub Rec Scr Fac Gar Fac Upp Upp War Pro Fac Was Fac Upp Upp Zhi Pro Res Qua Frg Combat Hostiles Destroyed 188 | . 8 19 1 . 13 . . . . 8 1 . . . . 6 . 1 . . 131 Melee 12 | . . . . . 1 . . . . . . . . . . . . 1 . . 10 Guns 47 | . 7 12 1 . . . . . . 8 1 . . . . . . . . . 18 Cannons 105 | . . 3 . . 2 . . . . . . . . . . . . . . . 100 AOE 22 | . . 3 . . 10 . . . . . . . . . . 6 . . . . 3 Classes Destroyed 24 | 3 3 2 . . 4 . . . . 4 . . . . . . . . . . 8 Worker 4 | 1 . . . . 3 . . . . . . . . . . . . . . . . Builder 6 | . . . . . 1 . 1 . . . . 3 . . . . . . . 1 . Tunneler 10 | 7 . . . . 3 . . . . . . . . . . . . . . . . Hauler 9 | . . . . . 2 . . . . . . 2 . 2 . . . . . 2 1 Recycler 8 | 1 . . 2 . 2 . . . . . . . . 1 . . . . . 2 . Mechanic 8 | . . . . . . . . . . 1 . . . . . . . . . . 7 Operator 5 | . . . . . 1 . . . . . . . . . . . . . 2 . 2 Drone 17 | . . . . . . . . . . . . . . . . . . . . . 17 Turret 2 | . . 2 . . . . . . . . . . . . . . . . . . . Watcher 2 | . 2 . . . . . . . . . . . . . . . . . . . . Swarmer 43 | . 3 4 . . 10 . . . . . . . . . . 6 . . . . 20 Saboteur 1 | . . . . . . . . . . . . . . . . . . . . . 1 Grunt 35 | . 5 2 1 . 2 . . . . 5 . . . . . . . . . . 20 Brawler 5 | . . . . . . . . . . 1 . . . . . . . . . . 4 Duelist 1 | . . . . . . . . . . 1 . . . . . . . . . . . Protector 6 | . . . . . . . . . . 1 . . . . . . . . . . 5 Sentry 1 | . . . . . . . . . . . . . . . . . . . . . 1 Hunter 12 | . . . . . . . . . . . . . . . . . . . . . 12 Programmer 11 | . . . . . 1 . . . . . . . . . . . . 1 . . 9 Decapitator 3 | . . . . . . . . . . . . . . . . . . . . . 3 Striker 22 | . . . . . . . . . . . . . . . . . . . . . 22 Executioner 17 | . . . . . . . . . . . . . . . . . . . . . 17 Subdweller 13 | . . 13 . . . . . . . . . . . . . . . . . . . Scrapoid 4 | . . . . . . . . . . . . . . . . . . . . . 4 Wasp 1 | . . . . . . . . . . . 1 . . . . . . . . . . Best Kill Streak 13 | 3 4 3 1 . 8 . 1 . . 6 1 2 . 2 . 6 . 1 1 2 13 Combat Bots Only 12 | . 4 3 1 . 6 . . . . 6 1 . . . . 6 . 1 . . 12 Max Kills in Single Turn 4 | 2 2 1 1 . 4 . 1 . . 1 1 1 . 1 . 2 . 1 1 1 2 Gunslinging 1 | . 1 . . . . . . . . . . . . . . . . . . . . Exploded 4 | . . 1 . . 4 . . . . . . . . . . 2 . . . . 1 Melee 1 | . . . . . 1 . . . . . . . . . . . . 1 . . 1 Uniques/NPCs Destroyed . | . . . . . . . . . . . . . . . . . . . . . . Combat | -11 -10 -10 -7 -7 -5 -5 -5 -5 -5 -5 -4 -4 -4 -4 -4 -4 -4 -3 -3 -3 -3 -------- Run | Yrd Mat Sub Rec Scr Fac Gar Fac Upp Upp War Pro Fac Was Fac Upp Upp Zhi Pro Res Qua Frg Hostile Shots Fired 847 | . 24 152 5 . 86 64 29 . . 27 4 32 . 29 16 10 . . 28 34 307 Missed 402 | . 8 47 2 . 41 25 17 . . 12 3 14 . 14 7 6 . . 15 26 165 Hits 445 | . 16 105 3 . 45 39 12 . . 15 1 18 . 15 9 4 . . 13 8 142 Melee 7 | . . . . . 1 . . . . . . . . . . . . . . . 6 Projectile 438 | . 16 105 3 . 44 39 12 . . 15 1 18 . 15 9 4 . . 13 8 136 AOE 7 | . . . . . . 2 . . . . . . . 1 . . . . . . 4 Critical Strikes 44 | . . 6 1 . . 3 1 . . 1 . . . 2 . . . . 1 1 28 Actively Blocked 29 | . . . . . . . . . . . . . . . . . . . 1 . 28 Part Disruptions 1 | . . . . . . . 1 . . . . . . . . . . . . . . Damage Taken 11280 | . 169 1599 48 . 830 716 477 . . 389 . 349 . 710 201 68 . . 344 535 4845 Core 2250 | . 20 221 . . 222 239 147 . . 139 . 37 . 146 . 4 . . 20 38 1017 Absorbed by Shields 9 | . . . . . . . . . . 9 . . . . . . . . . . . Regen/Repaired (Parts) 740 | . . . . . 9 . 54 . . 57 . 1 82 102 . . . . 71 159 205 Core Remaining (%) 52 | 100 . . . 3 . . . . . . 25 . . . . . . 83 . . . Volleys Fired 790 | 20 31 74 17 . 26 4 32 . . 50 1 10 . 7 2 6 . . 9 4 497 Largest 2 | 2 2 2 2 . 1 1 2 . . 1 1 1 . 1 1 1 . . 1 1 2 Hottest 300 | 100 150 100 63 . 80 40 77 . . 75 75 7 . 7 49 49 . . 7 7 300 Shots Fired 1051 | 40 58 139 21 . 26 4 37 . . 50 1 10 . 7 2 6 . . 9 4 637 Gun 406 | 40 53 106 10 . . . 9 . . 50 1 . . . . . . . . . 137 Cannon 575 | . . 26 11 . 19 4 28 . . . . . . . . . . . . . 487 Launcher 35 | . . 7 . . 7 . . . . . . . . . 2 6 . . . . 13 Special 35 | . 5 . . . . . . . . . . 10 . 7 . . . . 9 4 . Kinetic 732 | . . 74 21 . 23 4 28 . . . . . . . . . . . . . 582 Thermal 197 | 40 58 35 . . . . 9 . . 12 1 . . . . . . . . . 42 Explosive 24 | . . . . . 3 . . . . . . . . . 2 6 . . . . 13 Electromagnetic 30 | . . 30 . . . . . . . . . . . . . . . . . . . Entropic 38 | . . . . . . . . . . 38 . . . . . . . . . . . Robot Hit Streak 36 | 5 11 14 9 . 4 . 4 . . 7 1 3 . 2 . . . . 2 3 36 Robot Miss Streak 6 | 6 5 2 1 . 2 . 2 . . 3 . 2 . 2 . . . . 2 1 4 Penetration Max 2 | . . . . . 1 . . . . . . . . . . . . . . . 2 Secondary Targets 3 | . 2 1 . . . . . . . . . . . . . . . . . . . Max Gunslinging Chain 1 | . 1 1 . . . . . . . . . . . . . . . . . . . Shots Hit Robots 736 | 16 34 100 8 . 41 10 8 6 . 45 1 20 . 10 . . 10 1 12 11 403 Core Hits 346 | 10 16 34 4 . 36 3 3 2 . 12 1 6 . 3 . 9 2 1 3 4 197 Critical Kills 99 | . . . . . . . . . . . . . . . . . . . . . 99 Critical Parts Destroyed 120 | . . . . . . . . . . . . . . . . . . . . . 120 Critical Strikes 268 | 2 2 6 . . 8 2 . 1 . . . 3 . . . . 1 . . . 243 Burn 6 | 2 2 2 . . . . . . . . . . . . . . . . . . . Destroy 243 | . . 2 . . . . . . . . . . . . . . . . . . 241 Blast 6 | . . 1 . . 5 . . . . . . . . . . . . . . . . Corrupt 1 | . . 1 . . . . . . . . . . . . . . . . . . . Sever 7 | . . . . . 3 2 . . . . . . . . . . . . . . 2 Impale 5 | . . . . . . . . 1 . . . 3 . . . . 1 . . . . Melee Attacks 365 | . . 12 13 . 76 43 4 13 4 11 11 39 3 23 2 1 10 1 33 26 40 Impact . | . . . . . . . . . . . . . . . . . . . . . . Slashing 248 | . . 12 13 . 72 43 . 6 4 . . . . . . . . . 32 26 40 Piercing 103 | . . . . . . . 4 7 . 1 11 39 3 23 2 1 10 1 1 . . Sneak Attacks 56 | . . . 2 . 14 1 . . . 11 . 6 . 3 . . . 1 . 5 13 Combat Hostiles 3 | . . . . . 1 . . . . . . . . . . . . 1 . . 1 Follow-up Attacks . | . . . . . . . . . . . . . . . . . . . . . . Damage Inflicted 31310 | 233 471 1924 254 . 2918 687 143 354 . 1636 22 1320 . 610 . 701 916 153 656 815 17497 Guns 6963 | 233 466 1219 63 . . . 44 . . 1493 22 . . . . . . . . . 3423 Cannons 12606 | . . 349 64 . 364 . 99 . . . . . . . . . . . . . 11730 Explosions 2836 | . . 317 . . 1155 . . . . . . . . . . 701 . . . . 663 Melee 8892 | . . 39 127 . 1399 687 . 354 . 143 . 1320 . 610 . . 916 153 656 815 1673 Ramming 13 | . 5 . . . . . . . . . . . . . . . . . . . 8 Kinetic 17289 | . . 1179 127 . 731 . 99 . . . . . . . . . . . . . 15153 Thermal 1590 | 233 466 413 . . 195 . 44 . . 217 22 . . . . . . . . . . Explosive 1957 | . . . . . 593 . . . . . . . . . . 701 . . . . 663 Electromagnetic 293 | . . 293 . . . . . . . . . . . . . . . . . . . Impact . | . . . . . . . . . . . . . . . . . . . . . . Slashing 5273 | . . 39 127 . 1399 687 . . . . . . . . . . . . 533 815 1673 Piercing 3619 | . . . . . . . . 354 . 143 . 1320 . 610 . . 916 153 123 . . Entropic 1276 | . . . . . . . . . . 1276 . . . . . . . . . . . Highest Corruption 9 | . . . . . 3 . 1 1 1 3 3 . . 7 7 7 7 7 . 7 9 Average Corruption 3 | . . . . . 2 . 1 1 1 2 3 . . 4 7 7 7 7 . 7 3 Corruption Purged 9 | . . . . . 3 . . . . . . . . . . . . . . . 6 Corruption Blocked 11 | . . . . . . . . . . 11 . . . . . . . . . . . Effects 128 | . . . . . 5 . . 1 . 1 . . . 6 6 9 3 5 . 10 82 Message Errors 31 | . . . . . 2 . . . . . . . . 3 . . . . . 4 22 Matter Fused 37 | . . . . . . . . 1 . 1 . . . 2 2 6 2 2 . 2 19 Heat Flow Errors 14 | . . . . . 2 . . . . . . . . . 2 . . 1 . 1 8 Energy Discharges 8 | . . . . . . . . . . . . . . . . 1 1 1 . 1 4 Parts Rejected 1 | . . . . . . . . . . . . . . . . . . . . 1 . Parts Fused 3 | . . . . . 1 . . . . . . . . . . . . . . . 2 Data Loss (minor) 16 | . . . . . . . . . . . . . . 1 2 1 . 1 . 1 10 Data Loss (major) 9 | . . . . . . . . . . . . . . . . 1 . . . . 8 Alerts 3 | . . . . . . . . . . . . . . . . . . . . . 3 Weapon Failures 6 | . . . . . . . . . . . . . . . . . . . . . 6 Overload Shots . | . . . . . . . . . . . . . . . . . . . . . . Overflow Damage 2750 | . . 22 . . 368 119 34 160 . . . 463 . 136 . 51 398 . 181 140 678 Projectiles 274 | . . . . . . . 4 . . . . . . . . . . . . . 270 Explosions 212 | . . 22 . . 87 . 30 . . . . . . . . 51 . . . . 22 Melee 2264 | . . . . . 281 119 . 160 . . . 463 . 136 . . 398 . 181 140 386 Knockbacks 21 | . . 3 2 . 1 . 2 . . . . . . . . . . . . . 13 Impact . | . . . . . . . . . . . . . . . . . . . . . . Kinetic 20 | . . 3 2 . 1 . 2 . . . . . . . . . . . . . 12 Secondary 1 | . . . . . . . . . . . . . . . . . . . . . 1 Self-Inflicted Damage 246 | . . . . . 5 . 68 . . . . . . . 31 13 . . . . 129 Shots 6 | . . . . . 1 . 1 . . . . . . . 1 1 . . . . 2 Rammed 2 | . 1 . . . . . . . . . . . . . . . . . . . 1 Targets Rammed 2 | . 1 . . . . . . . . . . . . . . . . . . . 1 Kicked . | . . . . . . . . . . . . . . . . . . . . . . Crushed . | . . . . . . . . . . . . . . . . . . . . . . Highest Temperature 407 | 212 231 245 33 . 407 42 . . . 320 108 42 15 175 207 108 55 265 113 295 203 Average Temperature 62 | 81 73 42 14 . 98 14 . . . 96 34 10 7 25 60 45 23 154 5 104 73 Received Heat Transfer 1476 | . 72 725 45 . 81 180 63 . . 22 . 96 . 57 18 . . . 42 12 63 Effects 3 | . . . . . 3 . . . . . . . . . . . . . . . . Interference 3 | . . . . . 3 . . . . . . . . . . . . . . . . Siege Activations . | . . . . . . . . . . . . . . . . . . . . . . Martial Activations . | . . . . . . . . . . . . . . . . . . . . . . Shielding Activations . | . . . . . . . . . . . . . . . . . . . . . . Robots Disrupted . | . . . . . . . . . . . . . . . . . . . . . . Combat Hostiles . | . . . . . . . . . . . . . . . . . . . . . . Robots Corrupted 1 | . . 1 . . . . . . . . . . . . . . . . . . . Combat Hostiles 1 | . . 1 . . . . . . . . . . . . . . . . . . . Parts Fried 3 | . . 3 . . . . . . . . . . . . . . . . . . . Impact Corruptions . | . . . . . . . . . . . . . . . . . . . . . . Robots Melted 1 | . 1 . . . . . . . . . . . . . . . . . . . . Combat Hostiles 1 | . 1 . . . . . . . . . . . . . . . . . . . . Parts Melted 7 | 1 6 . . . . . . . . . . . . . . . . . . . . Heat Transferred 3811 | 851 1480 758 . . 150 . 185 . . 350 37 . . . . . . . . . . Parts Sabotaged . | . . . . . . . . . . . . . . . . . . . . . . Parts Stolen . | . . . . . . . . . . . . . . . . . . . . . . Parts Stripped . | . . . . . . . . . . . . . . . . . . . . . . Power Chain Reactions 1 | . . . . . . . 1 . . . . . . . . . . . . . . Alert | -11 -10 -10 -7 -7 -5 -5 -5 -5 -5 -5 -4 -4 -4 -4 -4 -4 -4 -3 -3 -3 -3 ------- Run | Yrd Mat Sub Rec Scr Fac Gar Fac Upp Upp War Pro Fac Was Fac Upp Upp Zhi Pro Res Qua Frg Maximum Alert Level 5 | . . . . . 2 3 3 . . . . . . 1 . . . . . 1 5 Low Security (%) 43 | 100 100 . 100 . 38 . . . . . . 100 100 47 . . . . 100 92 9 Level 1 7 | . . . . . 35 . . . . . . . . 52 . . . . . 7 . Level 2 11 | . . . . . 25 46 91 . . . . . . . . . . . . . 6 Level 3 5 | . . . . . . 53 8 . . . . . . . . . . . . . 9 Level 4 18 | . . . . . . . . . . . . . . . . . . . . . 44 Level 5 12 | . . . . . . . . . . . . . . . . . . . . . 29 High Security . | . . . . . . . . . . . . . . . . . . . . . . Max Security . | . . . . . . . . . . . . . . . . . . . . . . Peak Influence 3908 | 10 153 . 101 . 589 997 820 . . . . 162 88 398 . . . . 125 292 3908 Initial 512 | . 6 . 81 . . 406 512 . . . . . 55 . . . . . . 56 155 Average 762 | 1 55 . 22 . 261 682 533 . . . . 44 37 151 . . . . 33 88 1588 Influence Increases 11274 | 45 248 290 188 . 1449 651 710 5 . 506 20 388 63 733 105 145 15 30 361 539 4783 Destroy 0b10 Robot/C 3520 | . 160 160 20 . 260 . . . . 300 20 . . 280 . 120 . 20 . . 2180 Destroy 0b10 Robot/NC 445 | 45 10 . 10 . 70 10 5 5 . 10 . 40 . 20 . . 15 . 25 25 155 Destroy Leader 568 | . 34 10 . . 28 . . . . . . 10 . 66 . 10 . 10 6 4 390 Allied During Kill 273 | . . . . . . . . . . 106 . . . 167 . . . . . . . Successful Hack 502 | . 24 . 41 . 105 12 41 . . . . 37 . 42 . . . . 117 53 30 Select Force Hacks 180 | . . . 90 . . . 30 . . . . 30 . . . . . . 30 . . Disable Machine 585 | . . . 15 . 90 . 105 . . . . . . 15 . . . . 15 90 255 Anti-Garrison Action 300 | . . . . . . 150 . . . . . . . . . . . . . . 150 Destroy Structure 1601 | . 5 . 12 . 176 74 94 . . . . 46 48 68 . . . . 48 22 1008 Partial Spotted 615 | . . . . . 105 15 60 . . . . 75 15 60 . . . . 15 150 120 Lose Combat Pursuer 2685 | . 15 120 . . 615 390 375 . . 90 . 150 . 15 105 15 . . 105 195 495 Influence Decreases 7366 | 35 208 170 358 . 868 255 867 394 163 466 328 229 222 533 194 151 115 35 260 364 1151 Entered New Map 2197 | . 4 25 89 . . 175 465 304 83 268 308 . 104 . 74 22 105 5 . 45 121 Time Decay 3665 | 35 204 105 269 . 408 . 262 90 80 128 20 199 78 231 110 129 10 30 240 267 770 Search Patrol Dispatched 300 | . . . . . 200 . 100 . . . . . . . . . . . . . . Lost Part 656 | . . 40 . . 80 80 30 . . 50 . . . 70 10 . . . 20 16 260 Lost Ally 372 | . . . . . 30 . 10 . . 20 . 30 40 232 . . . . . 10 . Purge Threat 176 | . . . . . 150 . . . . . . . . . . . . . . 26 . Squads Dispatched 87 | . 2 . . . 20 . 13 . . . . 14 . 11 . . . . 10 4 13 Investigation 55 | . 1 . . . 12 . 9 . . . . 10 . 7 . . . . 4 2 10 Extermination 15 | . . . . . 4 . 2 . . . . 2 . 2 . . . . 3 2 . Reinforcement 17 | . 1 . . . 4 . 2 . . . . 2 . 2 . . . . 3 . 3 Assault . | . . . . . . . . . . . . . . . . . . . . . . Garrison . | . . . . . . . . . . . . . . . . . . . . . . Intercept . | . . . . . . . . . . . . . . . . . . . . . . Searches Triggered 3 | . . . . . 2 . 1 . . . . . . . . . . . . . . Unchained Authorized 1 | . . . . . . . . . . . . . . . . . . . . 1 . Construction Impeded 3 | . . . . . . . 1 . . . . 1 . 1 . . . . . . . Haulers Reinforced 3 | . . . . . 3 . . . . . . . . . . . . . . . . Active Scanning Responses . | . . . . . . . . . . . . . . . . . . . . . . Cargo Convoy Interrupts . | . . . . . . . . . . . . . . . . . . . . . . Stealth | -11 -10 -10 -7 -7 -5 -5 -5 -5 -5 -5 -4 -4 -4 -4 -4 -4 -4 -3 -3 -3 -3 --------- Run | Yrd Mat Sub Rec Scr Fac Gar Fac Upp Upp War Pro Fac Was Fac Upp Upp Zhi Pro Res Qua Frg Distress Signals 23 | . . . . . 3 2 4 . . . . . . 1 . . . . . 1 12 Communications Jammed . | . . . . . . . . . . . . . . . . . . . . . . Distress Signals . | . . . . . . . . . . . . . . . . . . . . . . Times Spotted 674 | . 15 21 2 . 58 39 43 . . 44 1 24 6 21 8 5 . . 27 38 322 Peak Tracking Total 17 | . 4 4 2 . 11 17 11 . . 6 1 10 6 5 10 6 . . 6 13 17 Tactical Retreats 93 | . 1 3 . . 17 6 12 . . 4 . 4 . 6 3 1 . . 5 8 23 ECM-based Alert Blocks 44 | . . . . . . . . . . . . . . 14 3 . . . 9 18 . Traps | -11 -10 -10 -7 -7 -5 -5 -5 -5 -5 -5 -4 -4 -4 -4 -4 -4 -4 -3 -3 -3 -3 ------- Run | Yrd Mat Sub Rec Scr Fac Gar Fac Upp Upp War Pro Fac Was Fac Upp Upp Zhi Pro Res Qua Frg Traps Triggered 12 | . 1 . . . 2 1 2 . . . . 2 . 3 . . . . . . 1 Indirectly . | . . . . . . . . . . . . . . . . . . . . . . Trap Hack Attempts 34 | . . . . . 34 . . . . . . . . . . . . . . . . Triggered . | . . . . . . . . . . . . . . . . . . . . . . Disarmed . | . . . . . . . . . . . . . . . . . . . . . . Reprogrammed 6 | . . . . . 6 . . . . . . . . . . . . . . . . Reused 1 | . . 1 . . . . . . . . . . . . . . . . . . . Traps Extracted 6 | . . . . . 6 . . . . . . . . . . . . . . . . Installed 1 | . . 1 . . . . . . . . . . . . . . . . . . . Triggered 1 | . . 1 . . . . . . . . . . . . . . . . . . . Most Traps Carried 6 | . . 1 . . 6 6 6 6 6 6 6 6 6 6 6 6 6 6 6 6 6 Machines | -11 -10 -10 -7 -7 -5 -5 -5 -5 -5 -5 -4 -4 -4 -4 -4 -4 -4 -3 -3 -3 -3 ---------- Run | Yrd Mat Sub Rec Scr Fac Gar Fac Upp Upp War Pro Fac Was Fac Upp Upp Zhi Pro Res Qua Frg Machines Disabled 52 | . . 3 1 . 6 . 7 . . 3 . . . 1 . . . . 1 6 24 Max in Single Turn 4 | . . 1 1 . 3 . 3 . . 1 . . . 1 . . . . 1 1 4 Garrison Access 2 | . . . . . . . . . . . . . . . . . . . . 1 1 Machines Repaired . | . . . . . . . . . . . . . . . . . . . . . . Machines Dismantled 1 | . . . . . . . . . . 1 . . . . . . . . . . . Machines Sabotaged . | . . . . . . . . . . . . . . . . . . . . . . Overloaded Fab Kills . | . . . . . . . . . . . . . . . . . . . . . . Hacking | -11 -10 -10 -7 -7 -5 -5 -5 -5 -5 -5 -4 -4 -4 -4 -4 -4 -4 -3 -3 -3 -3 --------- Run | Yrd Mat Sub Rec Scr Fac Gar Fac Upp Upp War Pro Fac Was Fac Upp Upp Zhi Pro Res Qua Frg Machines Accessed 138 | . 6 2 9 2 28 1 16 . . 2 . 14 . 11 . . 4 . 16 15 12 Terminals 67 | . 6 . 5 . 14 1 7 . . . . 4 . 3 . . . . 10 12 5 Fabricators 9 | . . . . . 2 . . . . . . 2 . 1 . . . . . . 4 Repair Stations 9 | . . . . . 1 . 2 . . . . 2 . 1 . . . . 1 2 . Recycling Units 29 | . . . 4 . 8 . 5 . . . . 4 . 3 . . . . 2 . 3 Scanalyzers 10 | . . . . . 2 . 2 . . . . 1 . 3 . . . . 2 . . Garrison Access 4 | . . . . . 1 . . . . . . 1 . . . . . . 1 1 . Total Hacks 364 | . 25 2 21 5 78 3 31 . . 2 . 37 . 44 . . 16 . 41 30 29 Successful 226 | . 16 2 9 5 52 2 18 . . 2 . 23 . 33 . . 16 . 24 16 8 Failed 135 | . 8 . 12 . 26 1 13 . . . . 14 . 10 . . . . 16 14 21 Catastrophic 12 | . . . 4 . 2 . 2 . . . . 2 . . . . . . 1 . 1 Database Lockouts 3 | . 1 . . . . . . . . . . . . 1 . . . . 1 . . Manual 224 | . 24 . 17 . 54 1 26 . . . . 25 . 16 . . . . 26 19 16 Terminals 193 | . 25 . 15 . 51 3 17 . . . . 13 . 11 . . . . 22 24 12 Fabricators 31 | . . . . . 4 . . . . . . 8 . 7 . . . . . . 12 Repair Stations 19 | . . . . . 2 . 2 . . . . 4 . 2 . . . . 4 5 . Recycling Units 36 | . . . 6 . 8 . 7 . . . . 4 . 3 . . . . 3 . 5 Scanalyzers 50 | . . . . . 10 . 5 . . . . 5 . 21 . . . . 9 . . Garrison Access 10 | . . . . . 3 . . . . . . 3 . . . . . . 3 1 . Terminal Hacks 50 | . 6 2 4 5 8 1 . . . 2 . 2 . . . . 16 . 1 2 1 Record 9 | . . . . 4 . . . . . . . . . . . . 5 . . . . Part Schematic 5 | . . . . . 2 . . . . . . . . . . . 3 . . . . Robot Analysis 6 | . 1 . . . . . . . . . . . . . . . 4 . . 1 . Prototype ID Bank 5 | . . . . . 1 . . . . . . . . . . . 4 . . . . Open Door 3 | . . 1 . . . . . . . 2 . . . . . . . . . . . Branch Access Points 1 | . 1 . . . . . . . . . . . . . . . . . . . . Emergency Access Points 1 | . . . . . . 1 . . . . . . . . . . . . . . . Machine Index 1 | . . . . . . . . . . . . . . . . . . . . . 1 Terminal Index 4 | . 1 . . . 1 . . . . . . 1 . . . . . . 1 . . Unreport Threat 2 | . . . . . 1 . . . . . . . . . . . . . . 1 . Recall Reinforcements 1 | . 1 . . . . . . . . . . . . . . . . . . . . Zone Layout 10 | . 2 . 4 . 3 . . . . . . 1 . . . . . . . . . Proto ID Catalog 1 | . . . . 1 . . . . . . . . . . . . . . . . . Release Object 1 | . . 1 . . . . . . . . . . . . . . . . . . . Fabricator Hacks 14 | . . . . . 1 . . . . . . 4 . 6 . . . . . . 3 Network Status 1 | . . . . . 1 . . . . . . . . . . . . . . . . Load Schematic 9 | . . . . . . . . . . . . 3 . 3 . . . . . . 3 Build 4 | . . . . . . . . . . . . 1 . 3 . . . . . . . Repair Station Hacks 6 | . . . . . 1 . 1 . . . . . . 1 . . . . 3 . . Scan Component 1 | . . . . . . . . . . . . . . . . . . . 1 . . Repair 1 | . . . . . . . . . . . . . . . . . . . 1 . . Refit 4 | . . . . . 1 . 1 . . . . . . 1 . . . . 1 . . Recycling Unit Hacks . | . . . . . . . . . . . . . . . . . . . . . . Scanalyzer 37 | . . . . . 7 . 4 . . . . 3 . 17 . . . . 6 . . Insert Component 16 | . . . . . 4 . 1 . . . . 1 . 8 . . . . 2 . . Analyze 15 | . . . . . 3 . 3 . . . . . . 8 . . . . 1 . . Retrieve Study 6 | . . . . . . . . . . . . 2 . 1 . . . . 3 . . Garrison Access Hacks 2 | . . . . . 1 . . . . . . . . . . . . . . 1 . Unlock Access 1 | . . . . . 1 . . . . . . . . . . . . . . . . Seal Access 1 | . . . . . . . . . . . . . . . . . . . . 1 . Unauthorized Hacks 117 | . 10 . 5 . 34 1 13 . . . . 14 . 9 . . . . 14 13 4 Terminals 75 | . 10 . 2 . 24 1 7 . . . . 4 . 4 . . . . 9 12 2 Track 8 | . 2 . . . 1 . . . . . . . . . . . . . 1 2 2 Assimilate 13 | . . . . . 6 . . . . . . 1 . 1 . . . . 1 4 . Botnet 20 | . 2 . 2 . 10 . 2 . . . . 1 . 1 . . . . 1 1 . Disrupt 1 | . 1 . . . . . . . . . . . . . . . . . . . . Skim 32 | . 5 . . . 7 . 5 . . . . 2 . 2 . . . . 6 5 . Override 1 | . . . . . . 1 . . . . . . . . . . . . . . . Fabricators 4 | . . . . . 1 . . . . . . 2 . 1 . . . . . . . Prioritize 1 | . . . . . . . . . . . . . . 1 . . . . . . . Recompile 3 | . . . . . 1 . . . . . . 2 . . . . . . . . . Repair Stations 6 | . . . . . 1 . 1 . . . . 2 . 1 . . . . . 1 . Mechanics 1 | . . . . . . . . . . . . 1 . . . . . . . . . Patch 5 | . . . . . 1 . 1 . . . . 1 . 1 . . . . . 1 . Recycling Units 26 | . . . 3 . 8 . 4 . . . . 4 . 3 . . . . 2 . 2 Tunnel 3 | . . . 3 . . . . . . . . . . . . . . . . . . Fedlink 23 | . . . . . 8 . 4 . . . . 4 . 3 . . . . 2 . 2 Scanalyzers 3 | . . . . . . . 1 . . . . 1 . . . . . . 1 . . Extract 3 | . . . . . . . 1 . . . . 1 . . . . . . 1 . . Garrison Access 3 | . . . . . . . . . . . . 1 . . . . . . 2 . . Broadcast 1 | . . . . . . . . . . . . . . . . . . . 1 . . Intercept 2 | . . . . . . . . . . . . 1 . . . . . . 1 . . Data Cores Recovered 2 | . . . . . . . . . . . . . . . . . . . 1 . 1 Used . | . . . . . . . . . . . . . . . . . . . . . . Hacking Detections 90 | . 6 . 5 . 18 1 7 . . . . 8 . 8 . . . . 13 14 10 Full Trace Events 18 | . . . 1 . 2 . 2 . . . . 2 . 3 . . . . 1 1 6 Feedback Events 1 | . . . . . . . . . . . . . . . . . . . . . 1 Corruption 1 | . . . . . . . . . . . . . . . . . . . . . 1 Feedback Blocked . | . . . . . . . . . . . . . . . . . . . . . . Robot Schematics Acquired . | . . . . . . . . . . . . . . . . . . . . . . Robots Built . | . . . . . . . . . . . . . . . . . . . . . . Authchips . | . . . . . . . . . . . . . . . . . . . . . . Time . | . . . . . . . . . . . . . . . . . . . . . . Total Robot Build Rating . | . . . . . . . . . . . . . . . . . . . . . . Part Schematics Acquired 117 | . . . . . 11 3 12 3 2 8 4 5 2 9 1 1 4 . 13 1 38 Parts Built 4 | . . . . . . . . . . . . 1 . 3 . . . . . . . Authchips 3 | . . . . . . . . . . . . 1 . 2 . . . . . . . Time 193 | . . . . . . . . . . . . 84 . 109 . . . . . . . Total Part Build Rating 15 | . . . . . . . . . . . . 6 . 9 . . . . . . . Part Studies Acquired 6 | . . . . . . . . . . . . 2 . 1 . . . . 3 . . Parts Repaired 1 | . . . . . . . . . . . . . . . . . . . 1 . . Time 54 | . . . . . . . . . . . . . . . . . . . 54 . . Parts Recycled . | . . . . . . . . . . . . . . . . . . . . . . Recycled Matter . | . . . . . . . . . . . . . . . . . . . . . . Retrieved Matter . | . . . . . . . . . . . . . . . . . . . . . . Retrieved Components . | . . . . . . . . . . . . . . . . . . . . . . Parts Scanalyzed 12 | . . . . . 4 . 1 . . . . 1 . 5 . . . . 1 . . Part Schematics Acquired 11 | . . . . . 3 . 1 . . . . . . 6 . . . . 1 . . Parts Damaged 1 | . . . . . . . . . . . . . . 1 . . . . . . . Bothacking | -11 -10 -10 -7 -7 -5 -5 -5 -5 -5 -5 -4 -4 -4 -4 -4 -4 -4 -3 -3 -3 -3 ------------ Run | Yrd Mat Sub Rec Scr Fac Gar Fac Upp Upp War Pro Fac Was Fac Upp Upp Zhi Pro Res Qua Frg Used RIF Installer . | . . . . . . . . . . . . . . . . . . . . . . Robots Hacked 17 | . . . . . 2 . . . . . . 4 . 3 . . . . 5 3 . Non-combat 1 | . . . . . . . . . . . . 1 . . . . . . . . . Combat . | . . . . . . . . . . . . . . . . . . . . . . Robot Hacks Applied 1 | . . . . . . . . . . . . 1 . . . . . . . . . find_chute 1 | . . . . . . . . . . . . 1 . . . . . . . . . Manual 16 | . . . . . 2 . . . . . . 3 . 3 . . . . 5 3 . Relay Couplers Released 1 | . . . . . . . . . . . . . . . . . . . . . 1 Machine Destruction 1 | . . . . . . . . . . . . . . . . . . . . . 1 Fabnet Peak Effective % . | . . . . . . . . . . . . . . . . . . . . . . Robots Rewired 6 | . . . . . . . . . . 5 . 1 . . . . . . . . . Allies Hacked . | . . . . . . . . . . . . . . . . . . . . . . Hacks Repelled . | . . . . . . . . . . . . . . . . . . . . . . Allies | -11 -10 -10 -7 -7 -5 -5 -5 -5 -5 -5 -4 -4 -4 -4 -4 -4 -4 -3 -3 -3 -3 -------- Run | Yrd Mat Sub Rec Scr Fac Gar Fac Upp Upp War Pro Fac Was Fac Upp Upp Zhi Pro Res Qua Frg Total Allies 32 | . . . . . 3 . . . . 5 . 2 19 1 . . . . . 2 . Largest Group 19 | . . . . . 2 . . . . 5 . 1 19 15 . . . . . 1 . Highest-Rated Group 702 | . . . . . 36 . . . . 244 . 49 702 602 . . . . . 45 . Highest-Rated Ally 64 | . . . . . 26 . . . . 64 . 49 50 50 . . . . . 45 . Total Orders 10 | . . . . . . . 2 . . 7 1 . . . . . . . . . . STAY 3 | . . . . . . . . . . 3 . . . . . . . . . . . ROAM 1 | . . . . . . . . . . 1 . . . . . . . . . . . FOLLOW 2 | . . . . . . . . . . 2 . . . . . . . . . . . GUARD 1 | . . . . . . . . . . 1 . . . . . . . . . . . EXPLORE 3 | . . . . . . . 2 . . . 1 . . . . . . . . . . Ally Attacks 203 | . . . . . . . . . . 35 . 2 77 89 . . . . . . . Total Damage 8368 | . . . . . . . . . . 1104 . 72 4327 2865 . . . . . . . Kills 31 | . . . . . . . . . . 8 . . 8 15 . . . . . . . Allies Corrupted . | . . . . . . . . . . . . . . . . . . . . . . Allies Melted 4 | . . . . . . . . . . . . . . . . . . . . . 4 Intel | -11 -10 -10 -7 -7 -5 -5 -5 -5 -5 -5 -4 -4 -4 -4 -4 -4 -4 -3 -3 -3 -3 ------- Run | Yrd Mat Sub Rec Scr Fac Gar Fac Upp Upp War Pro Fac Was Fac Upp Upp Zhi Pro Res Qua Frg Active Infowar (turns) 11938 | 1 636 9 . . 1194 266 576 194 169 605 363 627 174 564 222 305 89 116 599 636 4593 Optics 10412 | . . . . . 1127 266 576 194 169 605 363 627 174 564 222 305 89 116 599 132 4284 Sensors 5884 | . . . . . 1123 266 576 194 169 605 363 627 174 463 222 305 89 115 593 . . Terrain 264 | . . . . . . . . . . . . 264 . . . . . . . . . Structural 3331 | . . . . . . . . . . . . 332 174 440 222 305 89 116 442 475 736 Seismic 667 | 1 636 9 . . . . . . . . . . . 21 . . . . . . . ECM 730 | . . . . . . . . . . . . . . 439 33 . . . 81 177 . Robot Analysis Total 6 | . 1 . . . . . . . . . . . . . . . 4 . . 1 . Derelict Logs Recovered 10 | . . 1 . 3 . . . 1 2 . 1 . . . 1 1 . . . . . Drone Launches 6 | . . . . . . . 3 . . . 3 . . . . . . . . . . Drone Recoveries 4 | . . . . . . . 1 . . . 3 . . . . . . . . . . Exploration | -11 -10 -10 -7 -7 -5 -5 -5 -5 -5 -5 -4 -4 -4 -4 -4 -4 -4 -3 -3 -3 -3 ------------- Run | Yrd Mat Sub Rec Scr Fac Gar Fac Upp Upp War Pro Fac Was Fac Upp Upp Zhi Pro Res Qua Frg Turns Passed 17942 | 206 636 3018 803 1673 1428 266 576 194 169 605 363 627 174 564 222 305 89 116 599 636 4673 Spaces Moved 23587 | 118 309 1135 529 1426 2648 440 1278 408 439 1053 526 1221 270 1233 475 605 174 465 1289 2157 5389 Core 8 | 2 . . . . 6 . . . . . . . . . . . . . . . . Treads 982 | . 6 916 60 . . . . . . . . . . . . . . . . . . Legs . | . . . . . . . . . . . . . . . . . . . . . . Wheels 2545 | 116 303 219 469 1426 12 . . . . . . . . . . . . . . . . Hover . | . . . . . . . . . . . . . . . . . . . . . . Flight 20052 | . . . . . 2630 440 1278 408 439 1053 526 1221 270 1233 475 605 174 465 1289 2157 5389 Fastest Speed 7 | 50 100 115 115 115 19 22 27 35 35 20 21 25 25 25 23 27 21 20 7 7 16 Average Speed 45 | 99 101 235 130 115 26 25 27 35 35 34 24 25 25 25 28 28 25 20 18 20 28 Slowest Speed 260 | 100 160 260 250 115 200 106 107 35 35 105 25 25 25 29 29 29 27 24 21 24 122 Overloaded Moves 96 | . . . . . 15 . . . . . 9 . . . 13 . . . 15 23 21 Propulsion Burnouts . | . . . . . . . . . . . . . . . . . . . . . . Robots Hopped 116 | . . . . . 27 10 11 . . . . 4 4 12 . . . . 7 8 33 Potential Cave-ins 49 | . . . 6 . . . 5 . . . . . . . . . . . . . 38 Cave-ins Triggered 2 | . . . . . . . . . . . . . . . . . . . . 1 1 Exploration Rate (%) 65 | 5 63 50 89 89 77 62 41 69 68 95 65 40 87 31 81 81 61 88 36 97 70 Regions Visited 21 Branch Regions 13 Pre-discovered Areas 14 | . 1 . 3 1 1 . 1 . 1 . 1 . . . . . 3 . . 2 . Known Exits Taken 14 | . 1 1 . . 1 . 1 1 1 1 1 . . 1 1 1 1 1 1 . . Unknown Exits Taken 4 | 1 . . 1 1 . . . . . . . . . . . . . . . 1 . Scrap Searched 27 | . . 5 . 6 . . . 3 2 . 1 . . . 2 3 . 5 . . . Spaces Dug 522 | . 5 . 16 . 44 22 72 7 4 . 11 24 . 14 58 1 . . 24 11 209 Terrain Destroyed 867 | . 5 43 18 . 96 22 74 7 4 1 11 24 . 14 58 65 . . 24 11 390 Melee 191 | . . . 10 . 42 22 3 7 4 . 11 24 . 14 2 1 . . 24 11 16 Projectile 352 | . 5 . 8 . 4 . 27 . . 1 . . . . . . . . . . 307 AOE 324 | . . 43 . . 50 . 44 . . . . . . . 56 64 . . . . 67 Terrain Rammed . | . . . . . . . . . . . . . . . . . . . . . . Walls Destroyed . | . . . . . . . . . . . . . . . . . . . . . . Machines Disabled . | . . . . . . . . . . . . . . . . . . . . . . Actions | -11 -10 -10 -7 -7 -5 -5 -5 -5 -5 -5 -4 -4 -4 -4 -4 -4 -4 -3 -3 -3 -3 --------- Run | Yrd Mat Sub Rec Scr Fac Gar Fac Upp Upp War Pro Fac Was Fac Upp Upp Zhi Pro Res Qua Frg Total 29254 | 163 565 1322 600 1461 3201 514 1447 441 448 1228 739 1471 367 1426 553 727 202 485 1582 2307 8005 Wait 3794 | 14 207 35 29 14 331 19 125 19 4 64 198 179 95 134 69 111 . 9 225 96 1817 Move 23356 | 117 308 1134 528 1425 2596 423 1256 407 438 1052 525 1213 263 1208 474 604 173 464 1275 2142 5331 Hop 94 | . . . . . 25 5 10 . . . . 4 2 12 . . . . 6 6 24 Pick Up 108 | 4 8 12 3 14 8 2 2 . . 3 . 6 1 8 1 1 1 1 1 3 29 Fast Attach 180 | 7 . 8 2 1 22 2 5 1 2 20 2 8 1 10 . . 5 3 8 14 59 Attach 85 | . . 5 . . 13 4 4 . . 2 . . . 7 1 . 1 1 2 . 45 Detach 49 | . . 1 . . 1 3 3 . . 1 . . . 1 . . . . 2 . 37 Swap 115 | 1 6 21 5 1 26 1 . . . 4 . 5 . 6 4 3 5 1 11 1 14 Drop 207 | . 4 19 3 6 28 3 6 1 . 13 2 7 2 10 . 1 7 5 10 15 65 Fire 790 | 20 31 74 17 . 26 4 32 . . 50 1 10 . 7 2 6 . . 9 4 497 Melee 365 | . . 12 13 . 76 43 4 13 4 11 11 39 3 23 2 1 10 1 33 26 40 Ram 1 | . . . . . . . . . . . . . . . . . . . . . 1 Kick . | . . . . . . . . . . . . . . . . . . . . . . Crush 1 | . 1 . . . . . . . . . . . . . . . . . . . . Escape Stasis 36 | . . . . . 15 5 . . . . . . . . . . . . . . 16 Rewire . | . . . . . . . . . . . . . . . . . . . . . . Trap 35 | . . 1 . . 34 . . . . . . . . . . . . . . . . Miscellaneous 38 | . . . . . . . . . . 8 . . . . . . . . . . 30 Route ------- -11/Scrapyard -10/Materials (discovered 6 exits: *Mat x3 / *Min x2 / *Sub) -10/Subcaves (discovered 3 exits: *Mat x2 / *Rec) -7/Recycling (discovered 2 exits: *Fac / *Scr) -7/Scraptown (discovered 2 exits: *Fac x2) -5/Factory (discovered 7 exits: *Fac x4 / *Upp x2 / Gar) -5/Garrison (discovered 3 exits: *Fac x3) -5/Factory (discovered 2 exits: *Fac / *Upp) -5/Upper Caves -5/Upper Caves (discovered 2 exits: *Fac / *War) -5/Warlord -4/Proximity Caves -4/Factory (discovered 5 exits: *Res / *Upp x2 / Ext x2) -4/Waste -4/Factory (discovered 3 exits: *Res / *Upp x2) -4/Upper Caves -4/Upper Caves -4/Zhirov -3/Proximity Caves -3/Research (discovered 5 exits: *Res x3 / *Qua x2) -3/Quarantine (discovered 3 exits: *Res / [*Sec] / *Frg) -3/Protoforge (discovered 1 exit: *Res) History --------- Turn | Location | Event 18 | -11/Scrapyard | Discovered new exit (range 16) 207 | -11/Scrapyard | Entered Materials 264 | -10/Materials | Central database locked down 271 | -10/Materials | Identified exit to Mines 303 | -10/Materials | Build established: Mutant 345 | -10/Materials | Discovered new exit (range 11) 356 | -10/Materials | Learned 4 Subcaves zone layouts 432 | -10/Materials | Learned Storage stockpile data 480 | -10/Materials | Discovered new exit (range 6) 500 | -10/Materials | Identified exit to Materials 500 | -10/Materials | Identified exit to Subcaves 611 | -10/Materials | Learned 2 Storage zone layouts 680 | -10/Materials | Learned location of 2 exits from Subcaves 717 | -10/Materials | Learned 2 Mines zone layouts 843 | -10/Materials | Entered Subcaves 844 | -10/Subcaves | Approached by a straggling Scientist 844 | -10/Subcaves | Identified exit to Materials 845 | -10/Subcaves | Identified exit to Recycling 848 | -10/Subcaves | Learned Materials emergency access door positions 940 | -10/Subcaves | Shifting Twisted Machinery released Flamer 1015 | -10/Subcaves | Found SUBCON Basin 2067 | -10/Subcaves | Shifting Twisted Machinery released Battle Cannon 2105 | -10/Subcaves | Shifting Twisted Machinery released Sub. Machine Gun 2192 | -10/Subcaves | Shifting Twisted Machinery released Spk. Treads 2366 | -10/Subcaves | Build established: Derelict-Mutant 2387 | -10/Subcaves | Core integrity fell below 50% 2670 | -10/Subcaves | Build established: Mutant 3384 | -10/Subcaves | Disturbed a concealed Subdweller 3385 | -10/Subcaves | Disturbed a concealed Subdweller 3387 | -10/Subcaves | Disturbed a concealed Subdweller 3389 | -10/Subcaves | Core integrity fell below 20% 3757 | -10/Subcaves | Lost 4 parts (2n1u1w) 3861 | -10/Subcaves | Entered Recycling 4259 | -7/Recycling | Discovered new exit (range 14) 4329 | -7/Recycling | Build established: Scavenger-Mutant 4619 | -7/Recycling | Scanned before Scraplab entrance 4635 | -7/Recycling | Entered Scraplab 4662 | -7/Recycling | Discovered new exit (range 3) 4664 | -7/Recycling | Entered Scraptown 4756 | -7/Scraptown | Scanned Subdweller tech in exchange for log data 4759 | -7/Scraptown | Learned location of Testing (-2) 4814 | -7/Scraptown | Visited UFD Registry 4814 | -7/Scraptown | Registered with UFD as "Flashtalker" 4847 | -7/Scraptown | Visited Fellowship of the Rings 4888 | -7/Scraptown | Visited Bundlers 4962 | -7/Scraptown | Visited The Evicted 4995 | -7/Scraptown | Visited TADAMA 5033 | -7/Scraptown | Visited IN-MT5's Study 5050 | -7/Scraptown | Visited Comm Corps 5123 | -7/Scraptown | Discovered new exit (range 13) 5158 | -7/Scraptown | Build established: Mutant 5438 | -7/Scraptown | Visited Abandonware Association 5446 | -7/Scraptown | Learned abandonware demo "OVRCLOCK.EXE" 5450 | -7/Scraptown | Learned abandonware demo "SHUTEYE.EXE" 5450 | -7/Scraptown | Learned abandonware demo "MELTYB.EXE" 5475 | -7/Scraptown | Visited Curators Association 5514 | -7/Scraptown | Visited Research Penetration Think Tank 5537 | -7/Scraptown | Visited Junk Repository 5696 | -7/Scraptown | Visited Infowarlord's Domain 5702 | -7/Scraptown | Found Exp. Signal Interpreter 5721 | -7/Scraptown | Visited A0-MCA Data Center 5728 | -7/Scraptown | Given a C rating by A0-MCA 5732 | -7/Scraptown | Found A0-MCA's Component Scanner 5748 | -7/Scraptown | Visited Chapter 10 5767 | -7/Scraptown | Visited Scrapoid Research Area 5789 | -7/Scraptown | Visited Science Guys 5828 | -7/Scraptown | Visited Junk Cannon Lab 5846 | -7/Scraptown | Found Prototype Special Weapon 5846 | -7/Scraptown | Identified Junk Cannon 6275 | -7/Scraptown | Met Optimus 6275 | -7/Scraptown | Accepted into 0bPrime 6335 | -7/Scraptown | Discovered new exit (range 3) 6337 | -7/Scraptown | Entered Factory 6337 | -5/Factory | Evolved 10 slots: Power x1, Propulsion x4, Utility x5 6586 | -5/Factory | Discovered new exit (range 4) 6587 | -5/Factory | Identified exit to Factory 6731 | -5/Factory | Discovered new exit (range 12) 6779 | -5/Factory | Identified exit to Upper Caves 6976 | -5/Factory | Build established: Hacker-Scout 6992 | -5/Factory | Learned Armory emergency access door positions 7028 | -5/Factory | Learned location of 2 exits from Research 7038 | -5/Factory | Loaded intel: 8 recycling unit locations 7041 | -5/Factory | Learned location of Protoforge (-3) 7052 | -5/Factory | Discovered exit to Upper Caves (range 14) 7054 | -5/Factory | Learned Armory trap positions 7072 | -5/Factory | Learned Armory stockpile data 7079 | -5/Factory | Loaded intel: 6 repair station locations 7085 | -5/Factory | Learned Armory repair station intel 7099 | -5/Factory | Learned Extension emergency access door positions 7131 | -5/Factory | Lost 4 parts (2p2n) 7225 | -5/Factory | Found Prototype Launcher 7225 | -5/Factory | Identified Mni. Smartbomb Launcher 7237 | -5/Factory | Search patrols dispatched 7388 | -5/Factory | Tech Extrapolator generated special schematic: Deep Structural Scanner 7430 | -5/Factory | Discovered exit to Factory (range 4) 7537 | -5/Factory | Search patrols dispatched 7657 | -5/Factory | Discovered exit to Factory (range 8) 7765 | -5/Factory | Identified exit to Garrison 7765 | -5/Factory | Entered Garrison 7771 | -5/Garrison | Warlord forces raided the area 7831 | -5/Garrison | Triggered checkpoint 7838 | -5/Garrison | Triggered checkpoint 7839 | -5/Garrison | Triggered checkpoint 7890 | -5/Garrison | Discovered new exit (range 12) 7894 | -5/Garrison | Lost 4 parts (1p3n) 7903 | -5/Garrison | Identified exit to Factory 7903 | -5/Garrison | Attempted to access garrison exit controls, blocked by remote lockdown 7938 | -5/Garrison | Discovered exit to Factory (range 10) 7971 | -5/Garrison | Triggered checkpoint 7993 | -5/Garrison | Triggered checkpoint 8002 | -5/Garrison | Spotted B-90 Cyclops 8029 | -5/Garrison | Discovered exit to Factory (range 8) 8031 | -5/Garrison | Entered Factory 8229 | -5/Factory | Loaded intel: 8 recycling unit locations 8232 | -5/Factory | Core integrity fell below 50% 8259 | -5/Factory | Learned location of 1 exit from Armory 8275 | -5/Factory | Discovered exit to Factory (range 15) 8281 | -5/Factory | Build established: Scout 8308 | -5/Factory | Learned Extension emergency access door positions 8331 | -5/Factory | Search patrols dispatched 8345 | -5/Factory | Learned location of Proximity Caves (-5) 8372 | -5/Factory | Loaded intel: 6 repair station locations 8391 | -5/Factory | Learned Quarantine trap positions 8422 | -5/Factory | Learned 4 Extension zone layouts 8453 | -5/Factory | Learned Armory repair station intel 8607 | -5/Factory | Entered Upper Caves 8654 | -5/Upper Caves | Learned 12 Factory zone layouts 8666 | -5/Upper Caves | Spotted B-75 Beast 8720 | -5/Upper Caves | Encountered a Warlord checkpoint 8798 | -5/Upper Caves | Discovered new exit (range 13) 8801 | -5/Upper Caves | Identified exit to Upper Caves 8801 | -5/Upper Caves | Entered another Upper Caves area 8802 | -5/Upper Caves | Encountered a Warlord checkpoint 8838 | -5/Upper Caves | Discovered exit to Factory (range 6) 8850 | -5/Upper Caves | Tech Extrapolator generated special schematic: Energy Deflector 8902 | -5/Upper Caves | Tech Extrapolator generated special schematic: Machine Rigger 8943 | -5/Upper Caves | Entered a destroyed Warlord outpost 8950 | -5/Upper Caves | Learned Factory terminal intel 8953 | -5/Upper Caves | Learned location of Armory (-4) 8968 | -5/Upper Caves | Discovered new exit (range 7) 8969 | -5/Upper Caves | Identified exit to Warlord 8970 | -5/Upper Caves | Entered Warlord 8986 | -5/Warlord | System corruption cleaned by Quarantine Array 9022 | -5/Warlord | Received a Watcher feed algorithm from an ecstatic Tinkerer 9203 | -5/Warlord | Warlord's base attacked by MAIN.C 9213 | -5/Warlord | Rebuked by Warlord 9287 | -5/Warlord | Found Prototype Device 9287 | -5/Warlord | Identified Thermal Barrier 9292 | -5/Warlord | Found Prototype Processor 9292 | -5/Warlord | Identified Exp. Armor Integrity Analyzer 9311 | -5/Warlord | Found Prototype Energy Gun 9311 | -5/Warlord | Identified Vortex Shotgun 9314 | -5/Warlord | Found Prototype Energy Gun 9314 | -5/Warlord | Identified Vortex Rifle 9319 | -5/Warlord | Found Vortex Rifle 9432 | -5/Warlord | Warlord forces counterattacked 9439 | -5/Warlord | Spotted B-86 Titan 9459 | -5/Warlord | Build established: Commander-Scout 9490 | -5/Warlord | Lost 3 parts (2n1w) 9514 | -5/Warlord | Opened side exit 9528 | -5/Warlord | Spotted Striker 9533 | -5/Warlord | Allies destroyed Striker 9534 | -5/Warlord | Spotted Striker 9552 | -5/Warlord | Discovered new exit (range 19) 9570 | -5/Warlord | Identified exit to Proximity Caves 9575 | -5/Warlord | Entered Proximity Caves 9591 | -4/Proximity Caves | Lost 4 allies 9680 | -4/Proximity Caves | P-70 Sage assimilated allied MH-I1J(s) 9850 | -4/Proximity Caves | Build established: Scavenger-Scout 9885 | -4/Proximity Caves | Spotted B-86 Titan 9936 | -4/Proximity Caves | Discovered exit to Factory (range 7) 9938 | -4/Proximity Caves | Entered Factory 9938 | -4/Factory | Evolved 2 slots: Utility x2 9939 | -4/Factory | Identified exit to Extension 9940 | -4/Factory | Identified exit to Upper Caves 9941 | -4/Factory | Loaded intel: 26 terminal locations 10045 | -4/Factory | Fabricated Cld. Nuclear Pulse Thruster? 10299 | -4/Factory | Loaded intel: 8 recycling unit locations 10342 | -4/Factory | Discovered new exit (range 22) 10360 | -4/Factory | Identified exit to Research 10471 | -4/Factory | Spotted B-86 Titan 10509 | -4/Factory | Tech Extrapolator generated special schematic: Wartreads 10562 | -4/Factory | Build established: Hacker-Scout 10565 | -4/Factory | Manually triggered Chute Trap 10565 | -4/Factory | Sucked down chute 10565 | -4/Factory | Entered Waste 10569 | -4/Waste | Spotted C-40 Crusher 10569 | -4/Waste | Spotted C-40 Crusher 10571 | -4/Waste | Spotted C-40 Crusher 10572 | -4/Waste | Spotted C-40 Crusher 10574 | -4/Waste | Spotted C-40 Crusher 10576 | -4/Waste | Spotted C-40 Crusher 10582 | -4/Waste | Discovered new exit (range 11) 10595 | -4/Waste | Warlord forces began an assault 10601 | -4/Waste | Allies destroyed C-40 Crusher 10607 | -4/Waste | Allies destroyed C-40 Crusher 10608 | -4/Waste | Allies destroyed C-40 Crusher 10608 | -4/Waste | Allies destroyed C-40 Crusher 10615 | -4/Waste | Allies destroyed C-40 Crusher 10646 | -4/Waste | Lost 4 allies 10685 | -4/Waste | Identified exit to Factory 10739 | -4/Waste | Entered Factory 10739 | -4/Factory | Accompanied by 15 allies 10801 | -4/Factory | Fabricated Mak. ECM Suite (x1) 10846 | -4/Factory | Fabricated Deep Structural Scanner (x1) 10877 | -4/Factory | Found Prototype Hackware 10883 | -4/Factory | Identified Exp. Hacking Suite 10889 | -4/Factory | Discovered exit to Upper Caves (range 18) 10954 | -4/Factory | Found Prototype Device 10954 | -4/Factory | Identified Adv. EM Shield 10967 | -4/Factory | Discovered exit to Research (range 20) 10981 | -4/Factory | Loaded intel: 8 recycling unit locations 11049 | -4/Factory | Central database locked down 11072 | -4/Factory | Discovered exit to Upper Caves (range 23) 11099 | -4/Factory | Lost 4 parts (2p1n1u) 11139 | -4/Factory | Spotted B-86 Titan 11179 | -4/Factory | Lost 3 parts (3n) 11247 | -4/Factory | Fabricated Multitool (x1) 11303 | -4/Factory | Entered Upper Caves 11306 | -4/Upper Caves | Spotted B-86 Titan 11353 | -4/Upper Caves | Tech Extrapolator generated special schematic: Heat Bomb Trap 11459 | -4/Upper Caves | Learned 4 Research zone layouts 11489 | -4/Upper Caves | Discovered new exit (range 22) 11495 | -4/Upper Caves | Identified exit to Upper Caves 11525 | -4/Upper Caves | Entered another Upper Caves area 11534 | -4/Upper Caves | Learned Research security intel 11566 | -4/Upper Caves | Encountered a Warlord checkpoint 11767 | -4/Upper Caves | Attracted the attention of an 0b10 checkpoint 11815 | -4/Upper Caves | Discovered new exit (range 19) 11830 | -4/Upper Caves | Identified exit to Zhirov 11830 | -4/Upper Caves | Entered Zhirov 11830 | -4/Zhirov | Discovered new exit (range 3) 11835 | -4/Zhirov | Met Zhirov 11841 | -4/Zhirov | Learned location of Command (-1) 11843 | -4/Zhirov | Zhirov requested help retrieving the SGEMP Prototype 11847 | -4/Zhirov | Found Alien Artifact 11847 | -4/Zhirov | Identified Integrated Reactor 11847 | -4/Zhirov | Installed Integrated Reactor, increased core energy generation (+10) 11877 | -4/Zhirov | Found Alien Artifact 11919 | -4/Zhirov | Identified exit to Proximity Caves 11919 | -4/Zhirov | Entered Proximity Caves 11948 | -3/Proximity Caves | Spotted B-86 Titan 12017 | -3/Proximity Caves | Discovered exit to Research (range 15) 12018 | -3/Proximity Caves | Found DCF Scrap (13 items) 12035 | -3/Proximity Caves | Entered Research 12035 | -3/Research | Evolved 2 slots: Propulsion x2 12036 | -3/Research | Identified exit to Quarantine 12036 | -3/Research | Identified exit to Research 12057 | -3/Research | Spotted B-86 Titan 12058 | -3/Research | Discovered exit to Research (range 16) 12106 | -3/Research | Found Prototype Device 12106 | -3/Research | Identified Exp. EM Disruption Field 12161 | -3/Research | Loaded intel: 5 recycling unit locations 12328 | -3/Research | Discovered exit to Research (range 14) 12390 | -3/Research | Repaired Electron Diverter 12469 | -3/Research | Loaded intel: 75 trap records 12501 | -3/Research | Identified Transdimensional Reconstructor 12501 | -3/Research | Central database locked down 12509 | -3/Research | Learned Access scanalyzer intel 12511 | -3/Research | Found Faulty Spectral Analyzer 12514 | -3/Research | Tech Extrapolator generated special schematic: Telecube 12534 | -3/Research | Spotted B-90 Cyclops 12561 | -3/Research | Learned Testing emergency access door positions 12593 | -3/Research | Learned Research trap positions 12622 | -3/Research | Learned Quarantine trap positions 12634 | -3/Research | Entered Quarantine 12635 | -3/Quarantine | Loaded intel: 22 trap records 12640 | -3/Quarantine | Found Prototype Device 12640 | -3/Quarantine | Identified Exp. Thermal Shield 12690 | -3/Quarantine | Tech Extrapolator generated special schematic: Active Sensor Spoofer 12693 | -3/Quarantine | Found Prototype Device 12693 | -3/Quarantine | Identified Exp. ECM Suite 12766 | -3/Quarantine | Crushed by falling debris 12844 | -3/Quarantine | Cryocooling Duct disabled 12850 | -3/Quarantine | Discovered exit to Research (range 3) 12859 | -3/Quarantine | Ambient heat levels rising (+20) 12859 | -3/Quarantine | Non-combat units ordered to evacuate 12931 | -3/Quarantine | Build established: Hacker-Sprinter 12943 | -3/Quarantine | Learned Access emergency access door positions 12947 | -3/Quarantine | Cryocooling Duct disabled 12962 | -3/Quarantine | Ambient heat levels rising (+20) 12962 | -3/Quarantine | Combat units ordered to evacuate 12982 | -3/Quarantine | Learned Section 7 stockpile data 13020 | -3/Quarantine | Found Alien Slashing Weapon 13020 | -3/Quarantine | Identified Sigix Broadsword 13048 | -3/Quarantine | Learned location of 1 exit from Research 13049 | -3/Quarantine | Learned 8 Access zone layouts 13050 | -3/Quarantine | Learned Research security intel 13051 | -3/Quarantine | Learned 4 Section 7 zone layouts 13059 | -3/Quarantine | Unchained authorized (CL-0N3) 13062 | -3/Quarantine | Quarantine Guard activated 13075 | -3/Quarantine | Spotted Quarantine Guard 13076 | -3/Quarantine | Spotted Quarantine Guard 13082 | -3/Quarantine | Spotted Quarantine Guard 13082 | -3/Quarantine | Spotted Quarantine Guard 13088 | -3/Quarantine | Learned Research stockpile data 13202 | -3/Quarantine | Spotted Quarantine Guard 13202 | -3/Quarantine | Spotted Quarantine Guard 13202 | -3/Quarantine | Spotted Quarantine Guard 13210 | -3/Quarantine | Found Alien Artifact 13222 | -3/Quarantine | Found Alien Energy Cannon 13225 | -3/Quarantine | Spotted Quarantine Guard 13247 | -3/Quarantine | Found Alien Artifact 13250 | -3/Quarantine | Spotted Quarantine Guard 13251 | -3/Quarantine | Spotted Quarantine Guard 13253 | -3/Quarantine | Spotted Fortress 13269 | -3/Quarantine | Discovered new exit (range 5) 13269 | -3/Quarantine | Discovered new exit (range 6) 13270 | -3/Quarantine | Entered Protoforge 13323 | -3/Protoforge | Spotted B-86 Titan 13331 | -3/Protoforge | Superfortress began startup sequence 13383 | -3/Protoforge | Identified Core Cannon 13456 | -3/Protoforge | Crushed by falling debris 13458 | -3/Protoforge | Spotted EXE-6 13458 | -3/Protoforge | Spotted EXE-6 13465 | -3/Protoforge | Spotted SKR-2 13465 | -3/Protoforge | Spotted SKR-2 13465 | -3/Protoforge | Spotted SKR-2 13473 | -3/Protoforge | UFD initiated attack on Protoforge (Readiness: High) 13473 | -3/Protoforge | Loaded intel: 3 recycling unit locations 13488 | -3/Protoforge | Spotted EXE-6 13494 | -3/Protoforge | P-80 Master assimilated allied 03F03-D 13509 | -3/Protoforge | Optimus greeted in Protoforge 13518 | -3/Protoforge | Found Prototype Ballistic Gun 13518 | -3/Protoforge | Identified Cep. XC Strikerail 13520 | -3/Protoforge | Found Cep. XC Strikerail 13527 | -3/Protoforge | Lost 3 parts (1p1n1w) 13538 | -3/Protoforge | Lost 6 allies 13626 | -3/Protoforge | Spotted AP7-3 13627 | -3/Protoforge | Spotted AP7-3 13630 | -3/Protoforge | Spotted Overlord 13632 | -3/Protoforge | Lost 4 allies 13637 | -3/Protoforge | Met 7R-MNS 13684 | -3/Protoforge | Found Prototype Processor 13684 | -3/Protoforge | Identified Exp. Target Analyzer 13688 | -3/Protoforge | Spotted Striker 13692 | -3/Protoforge | Spotted Striker 13695 | -3/Protoforge | Destroyed Striker 13735 | -3/Protoforge | Additional patrols dispatched to research labs 13745 | -3/Protoforge | Spotted Striker 13745 | -3/Protoforge | Spotted Striker 13745 | -3/Protoforge | Spotted Executioner 13758 | -3/Protoforge | Spotted Executioner 13774 | -3/Protoforge | UFD reported confirmed Drillbomb installation 13778 | -3/Protoforge | Lost 3 parts (2n1u) 13794 | -3/Protoforge | Build established: Scavenger-Sprinter 13817 | -3/Protoforge | Forge Plexus network access discovered 13848 | -3/Protoforge | Identified Core Reset Matrix 13848 | -3/Protoforge | Identified Subatomic Replicator 13848 | -3/Protoforge | Used Core Reset Matrix 13852 | -3/Protoforge | Sensed 2 artifacts in vicinity 13862 | -3/Protoforge | Lost 4 allies 13934 | -3/Protoforge | Spotted Executioner 13935 | -3/Protoforge | Spotted Striker 13972 | -3/Protoforge | Tech Extrapolator generated special schematic: Wartreads 13976 | -3/Protoforge | Lost 3 allies 14002 | -3/Protoforge | Spotted Decapitator 14002 | -3/Protoforge | Spotted Decapitator 14002 | -3/Protoforge | Spotted Decapitator 14002 | -3/Protoforge | Spotted Decapitator 14005 | -3/Protoforge | Destroyed Decapitator 14009 | -3/Protoforge | Destroyed Decapitator 14014 | -3/Protoforge | Destroyed Decapitator 14032 | -3/Protoforge | Found Cep. NT7 Matterbank 14046 | -3/Protoforge | Found Cep. Antigrav Storage Unit 14049 | -3/Protoforge | Found Cep. Chromion Battery 14057 | -3/Protoforge | Core integrity fell below 50% 14059 | -3/Protoforge | Found Cep. Matter Streamer 14067 | -3/Protoforge | Spotted V496-g 14085 | -3/Protoforge | Spotted V466-r 14085 | -3/Protoforge | Spotted V560-t 14086 | -3/Protoforge | Spotted V335-s 14086 | -3/Protoforge | Found Cep. Helical Railcannon 14088 | -3/Protoforge | Found Cep. Plasma Driver 14090 | -3/Protoforge | Found Cep. Disintegration Ray 14102 | -3/Protoforge | Spotted Executioner 14102 | -3/Protoforge | Spotted Executioner 14129 | -3/Protoforge | Spotted Striker 14140 | -3/Protoforge | Spotted Striker 14140 | -3/Protoforge | Spotted Striker 14145 | -3/Protoforge | P-80 Master assimilated allied 03F73-D 14171 | -3/Protoforge | Lost 4 parts (1p3n) 14253 | -3/Protoforge | Found Adv. Kinecellerator 14291 | -3/Protoforge | Found Exp. Core Analyzer 14296 | -3/Protoforge | Spotted Executioner 14298 | -3/Protoforge | Spotted Striker 14311 | -3/Protoforge | Spotted Executioner 14316 | -3/Protoforge | Spotted Executioner 14317 | -3/Protoforge | Destroyed Executioner 14319 | -3/Protoforge | Destroyed Executioner 14329 | -3/Protoforge | Found Exp. Targeting Computer 14336 | -3/Protoforge | Found Exp. Targeting Computer 14339 | -3/Protoforge | Found Exp. Core Analyzer 14350 | -3/Protoforge | Spotted Executioner 14356 | -3/Protoforge | Spotted Striker 14375 | -3/Protoforge | Lost 5 allies 14390 | -3/Protoforge | Spotted Striker 14393 | -3/Protoforge | Spotted Striker 14398 | -3/Protoforge | Build established: Scavenger-Mutant 14398 | -3/Protoforge | Destroyed Striker 14406 | -3/Protoforge | Spotted Striker 14408 | -3/Protoforge | Destroyed Striker 14409 | -3/Protoforge | Spotted Striker 14427 | -3/Protoforge | Destroyed Striker 14431 | -3/Protoforge | Destroyed Striker 14462 | -3/Protoforge | Spotted Striker 14492 | -3/Protoforge | Destroyed 12 combat bots 14546 | -3/Protoforge | Tech Extrapolator generated special schematic: Deep Structural Scanner 14553 | -3/Protoforge | Lost 4 allies 14576 | -3/Protoforge | Spotted Striker 14578 | -3/Protoforge | Spotted Striker 14585 | -3/Protoforge | Lost 5 parts (3n1u1w) 14639 | -3/Protoforge | Core integrity fell below 20% 14657 | -3/Protoforge | Spotted Striker 14667 | -3/Protoforge | Spotted Striker 14687 | -3/Protoforge | Spotted Immortal 14691 | -3/Protoforge | Spotted Hotshot 14691 | -3/Protoforge | Spotted Hotshot 14718 | -3/Protoforge | Spotted Striker 14723 | -3/Protoforge | Lost 6 allies 14790 | -3/Protoforge | Spotted Immortal 14818 | -3/Protoforge | Found Unknown Device 14818 | -3/Protoforge | Identified Scrap Suit 14828 | -3/Protoforge | Spotted Striker 14837 | -3/Protoforge | Spotted Decapitator 14844 | -3/Protoforge | Spotted Decapitator 14845 | -3/Protoforge | Spotted Decapitator 14847 | -3/Protoforge | Spotted Decapitator 14863 | -3/Protoforge | Destroyed 8 combat bots 14872 | -3/Protoforge | Spotted Executioner 14890 | -3/Protoforge | Found UFD Drillbomb 14893 | -3/Protoforge | Lost 8 allies 14916 | -3/Protoforge | Spotted Executioner 14939 | -3/Protoforge | Spotted Executioner 14944 | -3/Protoforge | Spotted Striker 14944 | -3/Protoforge | Spotted Striker 14947 | -3/Protoforge | Spotted Striker 14947 | -3/Protoforge | Spotted Striker 14984 | -3/Protoforge | Lost 4 allies 15017 | -3/Protoforge | Installed UFD Drillbomb at designated target 15017 | -3/Protoforge | UFD reported confirmed Drillbomb installation 15071 | -3/Protoforge | Spotted Striker 15094 | -3/Protoforge | Lost 4 allies 15253 | -3/Protoforge | UFD reported confirmed Drillbomb installation 15353 | -3/Protoforge | Tech Extrapolator generated special schematic: Active Sensor Spoofer 15594 | -3/Protoforge | UFD reported confirmed Drillbomb installation 16072 | -3/Protoforge | Tech Extrapolator generated special schematic: Energy Deflector 16355 | -3/Protoforge | Found Exp. Core Analyzer 16358 | -3/Protoforge | Found Exp. Targeting Computer 16362 | -3/Protoforge | Found Unknown Device 16362 | -3/Protoforge | Identified 0bPrime Scrap Suit 16388 | -3/Protoforge | Spotted Striker 16431 | -3/Protoforge | Tech Extrapolator generated special schematic: Machine Rigger 16441 | -3/Protoforge | Spotted Striker 16444 | -3/Protoforge | Spotted Striker 16453 | -3/Protoforge | Destroyed Striker 16466 | -3/Protoforge | Spotted Striker 16467 | -3/Protoforge | Spotted Executioner 16469 | -3/Protoforge | Destroyed Executioner 16469 | -3/Protoforge | Destroyed Striker 16481 | -3/Protoforge | Tech Extrapolator generated special schematic: Telecube 16498 | -3/Protoforge | Found Exp. Targeting Computer 16509 | -3/Protoforge | Spotted Hotshot 16513 | -3/Protoforge | Destroyed 7 combat bots 16518 | -3/Protoforge | Spotted Hotshot 16523 | -3/Protoforge | Lost 4 allies 16540 | -3/Protoforge | UFD reported confirmed Drillbomb installation 16558 | -3/Protoforge | Found UFD Drillbomb 16617 | -3/Protoforge | Spotted Executioner 16626 | -3/Protoforge | Spotted Executioner 16637 | -3/Protoforge | Spotted Executioner 16638 | -3/Protoforge | Build established: Scavenger-Sprinter 16652 | -3/Protoforge | Spotted Executioner 16661 | -3/Protoforge | Destroyed Executioner 16692 | -3/Protoforge | Destroyed 7 combat bots 16698 | -3/Protoforge | Lost 5 allies 16719 | -3/Protoforge | Spotted Striker 16726 | -3/Protoforge | Destroyed Striker 16733 | -3/Protoforge | Spotted Striker 16738 | -3/Protoforge | Spotted Striker 16755 | -3/Protoforge | Destroyed Striker 16760 | -3/Protoforge | Spotted Striker 16764 | -3/Protoforge | Spotted Striker 16765 | -3/Protoforge | Destroyed Striker 16773 | -3/Protoforge | Spotted Executioner 16773 | -3/Protoforge | Destroyed Executioner 16786 | -3/Protoforge | Spotted Executioner 16803 | -3/Protoforge | P-80 Master assimilated allied 03F52-K 16804 | -3/Protoforge | Spotted 03F52-K 16842 | -3/Protoforge | Spotted Striker 16842 | -3/Protoforge | Spotted Executioner 16842 | -3/Protoforge | Spotted Striker 16842 | -3/Protoforge | Spotted Executioner 16845 | -3/Protoforge | Destroyed 9 combat bots 16845 | -3/Protoforge | Lost 10 allies 16862 | -3/Protoforge | Destroyed Striker 16866 | -3/Protoforge | Destroyed Striker 16873 | -3/Protoforge | Destroyed Executioner 16888 | -3/Protoforge | Spotted Striker 16894 | -3/Protoforge | Spotted Executioner 16914 | -3/Protoforge | Spotted Hotshot 16914 | -3/Protoforge | Spotted Hotshot 16920 | -3/Protoforge | Installed UFD Drillbomb at designated target 16920 | -3/Protoforge | UFD reported confirmed Drillbomb installation 16922 | -3/Protoforge | Found UFD Drillbomb 16929 | -3/Protoforge | Destroyed 7 combat bots 16930 | -3/Protoforge | Lost 5 allies 16947 | -3/Protoforge | Installed UFD Drillbomb at designated target 16947 | -3/Protoforge | UFD reported confirmed Drillbomb installation 16947 | -3/Protoforge | Spotted Striker 16961 | -3/Protoforge | Found UFD Drillbomb 16963 | -3/Protoforge | Spotted Executioner 16978 | -3/Protoforge | Spotted Executioner 16979 | -3/Protoforge | Spotted Executioner 16997 | -3/Protoforge | Spotted Executioner 16999 | -3/Protoforge | Destroyed Executioner 17009 | -3/Protoforge | Lost 3 allies 17010 | -3/Protoforge | Destroyed Executioner 17033 | -3/Protoforge | Spotted Striker 17034 | -3/Protoforge | Spotted Striker 17041 | -3/Protoforge | Spotted Striker 17043 | -3/Protoforge | Destroyed Striker 17044 | -3/Protoforge | Destroyed Striker 17051 | -3/Protoforge | Spotted Executioner 17059 | -3/Protoforge | Destroyed Striker 17073 | -3/Protoforge | UFD reported confirmed Drillbomb installation 17078 | -3/Protoforge | Destroyed Executioner 17104 | -3/Protoforge | Destroyed 8 combat bots 17112 | -3/Protoforge | Lost 5 allies 17127 | -3/Protoforge | Spotted Executioner 17127 | -3/Protoforge | Spotted Striker 17127 | -3/Protoforge | Spotted Striker 17128 | -3/Protoforge | Spotted Striker 17155 | -3/Protoforge | UFD reported confirmed Drillbomb installation 17180 | -3/Protoforge | Lost 5 allies 17185 | -3/Protoforge | Spotted Executioner 17190 | -3/Protoforge | Spotted Executioner 17195 | -3/Protoforge | Destroyed Executioner 17248 | -3/Protoforge | Spotted Striker 17252 | -3/Protoforge | Destroyed Striker 17254 | -3/Protoforge | Spotted Executioner 17256 | -3/Protoforge | Destroyed Executioner 17272 | -3/Protoforge | Spotted Executioner 17275 | -3/Protoforge | Spotted Executioner 17285 | -3/Protoforge | Destroyed Executioner 17289 | -3/Protoforge | Spotted Executioner 17325 | -3/Protoforge | Lost 12 allies 17428 | -3/Protoforge | Spotted Executioner 17432 | -3/Protoforge | Destroyed Executioner 17444 | -3/Protoforge | Spotted Executioner 17448 | -3/Protoforge | Destroyed Executioner 17510 | -3/Protoforge | Spotted Striker 17515 | -3/Protoforge | Spotted Executioner 17522 | -3/Protoforge | Spotted Executioner 17560 | -3/Protoforge | Lost 4 allies 17574 | -3/Protoforge | Spotted Striker 17575 | -3/Protoforge | Spotted Executioner 17579 | -3/Protoforge | Destroyed Striker 17579 | -3/Protoforge | P-80 Master assimilated allied 03FKF-D 17582 | -3/Protoforge | Spotted Executioner 17670 | -3/Protoforge | Spotted Executioner 17672 | -3/Protoforge | Spotted Striker 17672 | -3/Protoforge | Destroyed Executioner 17678 | -3/Protoforge | Destroyed Striker 17702 | -3/Protoforge | Lost 3 allies 17716 | -3/Protoforge | Destroyed Executioner 17740 | -3/Protoforge | Spotted Striker 17741 | -3/Protoforge | Destroyed Striker 17743 | -3/Protoforge | Spotted Striker 17748 | -3/Protoforge | Destroyed Striker 17763 | -3/Protoforge | Spotted Striker 17768 | -3/Protoforge | Destroyed Striker 17770 | -3/Protoforge | Spotted Executioner 17775 | -3/Protoforge | Discovered exit to Research (range 22) 17789 | -3/Protoforge | Destroyed 7 combat bots 17793 | -3/Protoforge | Spotted Executioner 17793 | -3/Protoforge | Spotted Executioner 17839 | -3/Protoforge | Spotted Striker 17840 | -3/Protoforge | Spotted Striker 17892 | -3/Protoforge | Spotted Executioner 17892 | -3/Protoforge | Destroyed Executioner 17896 | -3/Protoforge | Spotted Striker 17909 | -3/Protoforge | Destroyed Striker 17926 | -3/Protoforge | Spotted Striker 17930 | -3/Protoforge | Destroyed 7 combat bots 17941 | -3/Protoforge | Spotted Executioner 17941 | -3/Protoforge | Spotted Executioner 17943 | -3/Protoforge | Destroyed by Executioner with Helical Railgun Last Messages --------------- 17935_ N-04 Retriever collects Microactuators. 17937_ N-04 Retriever collects Xenon Bombardment Thruster. 17937_ N-04 Retriever collects Power Amplifier. 17940_ 03FLQ-D cannibalizes Mak. Coolant Network to repair Mak. Coolant Network. 17942_ HV Slug penetrates Executioner. 17942_ Executioner suffers critical hit (Destroy). 17942_ Destroyed Helical Railgun. 17943_ C-45 Heavy ARC bursts open, deploying its payload. 17943_ G-67 Veteran unfolds itself. 17943_ S-43 Plague unfolds itself. 17943_ B-74 Champion unfolds itself. 17943_ L-61 Swordsman unfolds itself. 17943_ I-47 Archangel unfolds itself. 17943_ Slug penetrates 03FLQ-D. 17943_ Slug penetrates S-43 Plague. 17943_ Penetrated by Slug. Map ----- +----------------------------------------------------+ | ?????????????????????? ?????????? ### ##?????????? | | ?????????????????????? ?? ???????# #""#####?????? | | ?????????????????????? ? ????????#"""" #?????? | | ?????????????????????" ? ??????? #?????? | | ???????????????????""" ???????? % #?????? | | ??????????????????#""" ????????? #?????? | | ??????????????????#""" ?????????#""# % #???### | | ??????????????????#""" ????##??## #* ! ######"# | | ????????????????### ?????# ###* ; " !! " | | ?????????????####""#;#;###???? ![ = " !*" | | ?????????????# ;=% #######%%|*%;!! *%!%%% | | ?????????????# %#%" % ===![= /%% %%%!%% %" | | ???????##?#### " +%"% %=%%%!%!%% m%%%%%%%" | | ???##??# ## ## !"""; %% % %=%!*[ = =%/ " % " | | ?###"### # # ""# % % % ;#!#!%[ !%%"%&""" | | # ![R"#;;; ! % %! ; ; [ =/&=*# | | " ""# %%% % ; ; =[%=[ ; # | | % % % = "" #[[[%!=% ;*; *%=%* ;#;##""" | | [ % !!! ! ==/%==*=!/==[%*!=; # | | = ! b=%==!%[### #![[[%!!%*=!!!*!%*== * """" " | | % !=%%ilg=%!%%*[! #=!!*!!*=[=[![*![*%[!![ " | | == %%E%!s[!%=%%&%= s=!s!%;%;;;;%&&%%%!%!*!! " | | [ E*!=%!!%%!!*%% sss %%AA&%% %&%% =%!![! % | | %!%!![!**[]%=/ !!|=!%;;%%;%% %% % ;*[! [*" | | [ =*"""!=%[% %%% !*%*%!===[%! ; %%% %%; %%;%"" | | " %[[%!!== !==[@=!!%!*%%* %%%%% %%%% %%% | | %;/ *%%*= ; [[=*[!=!**;% % %%%%% % %% | | ; % *!%; %% ; % %% %% % | | # #########% % !%![= **;;%%;;% %; ;%%% ;"![ | | ?###???????#; %/]!![=% m !=[%;; ; %!=%]!=! | | ????????????####;%=%[;;[ % %=% ; ;!=*=%*!! | | ?????????????# ; *!=*;%!; ;;;; %;% ;==![=!! | | ##???????????##; [%!*%%! %% %% #![!!!%*"" | | #??????????#### %=%!*![ % % %; !%[%!% | | ?????????? ## ==[%=!*!| % # #[ !"=""" | | #???#?##???# ## %=!!!%!;*;%;;%% ;;;####""" % | | #####"#"##?# #######[[%=!![ % ; ##??## % | | %# #?# #???#?#==*!%= ; # #????? % | | " " " "## #???# #;*=/%[| !=* ;##??### | | ![! "" ""# ##??# ;*%=* = !*%! ###??# ==% | | %%%!! "" " #### ;[[[=%!*[*[%=%=! #??#### # | | [![=! " # # # ;=*%!=![%!!!%%=# ##??### = | | =!![! %% !"*% " ![ !;=!|![[!!!*!!|%*#!#### = | | !%%=%/ %]%%=[===[[![**==![!/===![[=[[[!## # !"!% | | !!!*%*=!!!=/%=!!!!=!!!!=!==!!*!!%%|%%=%=*=!#""" % | | !!!!/%]!%!![*%[=![!=*[%!!!*%[[*%%*["%*!=[= " % | | "#%"%[%/!!=/%%!%[%[=*%!!=|!==!!=%!%%[!%=[%" "%% | | "%=====]%!%==%[%=*%[%===%%!!%%**/ =%%=*%!=!!%% | | %=%==%/*!*%%!=%%%%%[=%!%%* % " % %%!%===*% | | %%![%!/!!*=*[%%%!!%%%%%%%! % % "%" "" %=*" | +----------------------------------------------------+ Best States ------------- Heat Dissipation 71 Coolant Potential 50 Energy Generation 54 Energy Capacity 1200 Matter Stores 300 Matter Capacity 800 Sight Range 23 Robot Scan Range 18 Terrain Scan Range 14 Terrain Scan Density 10 ECM Strength 3 Corruption Block 11 Armor Coverage 600 Evasion (%) 80 Targeting Accuracy 36 Target Analysis 10 Core Analysis 12 Recoil Reduction 2 Kinecelleration 50 Salvage Targeting 3 Offensive Hacking 48 Defensive Hacking 12 Authchip Count 2 Trap Extractor Capacity 8 Item Schematics ----------------- Mak. Power Source | -3/Protoforge | Extrapolated Wartreads | -3/Protoforge | Extrapolated Multireflex Exoskeleton | -3/Protoforge | Extrapolated Enh. Multireflex Exoskeleton | -3/Protoforge | Extrapolated Mak. Flight Unit | -3/Protoforge | Extrapolated Mak. Coolant Network | -3/Protoforge | Extrapolated Lgt. Humpback | -3/Protoforge | Extrapolated Humpback | -3/Protoforge | Extrapolated Deep Structural Scanner | -3/Protoforge | Extrapolated Mak. Terrain Scanner | -3/Protoforge | Extrapolated Mak. Terrain Scan Processor | -3/Protoforge | Extrapolated 0b10 Decoder Chip [Generic] | -3/Protoforge | Extrapolated 0b10 Decoder Chip [Looter] | -3/Protoforge | Extrapolated 0b10 Decoder Chip [Scout] | -3/Protoforge | Extrapolated 0b10 Decoder Chip [Skirmisher] | -3/Protoforge | Extrapolated Mak. Salvage Targeting Computer | -3/Protoforge | Extrapolated Mak. Targeting Computer | -3/Protoforge | Extrapolated Tactical Coordination Suite | -3/Protoforge | Extrapolated Mak. Transmission Jammer | -3/Protoforge | Extrapolated Mak. ECM Suite | -3/Protoforge | Extrapolated Active Sensor Spoofer | -3/Protoforge | Extrapolated Mak. Core Shielding | -3/Protoforge | Extrapolated Mak. Propulsion Shielding | -3/Protoforge | Extrapolated Mak. Light Armor Plating | -3/Protoforge | Extrapolated Mak. Medium Armor Plating | -3/Protoforge | Extrapolated Mak. Heavy Armor Plating | -3/Protoforge | Extrapolated Mak. Kinetic Plating | -3/Protoforge | Extrapolated Mak. Thermal Plating | -3/Protoforge | Extrapolated Mak. Ablative Armor | -3/Protoforge | Extrapolated Energy Deflector | -3/Protoforge | Extrapolated Mak. Hacking Suite | -3/Protoforge | Extrapolated Mak. System Shield | -3/Protoforge | Extrapolated Mak. System Restoration Module | -3/Protoforge | Extrapolated Mapping Drone Bay | -3/Protoforge | Extrapolated Machine Rigger | -3/Protoforge | Extrapolated Telecube | -3/Protoforge | Extrapolated Robot Schematics ------------------ None Fabricated ------------ Cld. Nuclear Pulse Thruster | x1 | -4/Factory | Authchip Mak. ECM Suite | x1 | -4/Factory | Authchip Deep Structural Scanner | x1 | -4/Factory | Authchip Multitool | x1 | -4/Factory Repaired ---------- Electron Diverter | 21% | -3/Research Studied --------- None Alien Tech Used ----------------- Integrated Reactor Sigix Broadsword Core Cannon Core Reset Matrix Achievements -------------- None Challenges ------------ None Game ------ Seed LayeredPowerNanoactuators Manual? 0 Play Time 06:13:16 Cumulative 640.3 hours Start 2025.11.11 @ 14:43:24 End 2025.11.11 @ 21:32:04 Sessions 1 Manual Loads 0 Difficulty Rogue Special Mode None Game No. 262 Rogue 262 Adventurer 0 Explorer 0 Win Type - Total 49 Types 21/4/8/3/6/1/0/3/0/3 Lore% 96 Gallery% 89 Achievement% 77 Wizard Run 0 Options --------- Layout 1 ASCII 0 Keyboard 0 Movement Numpad Keybinds 0 Fullscreen 1 Font 24/Smallcaps Map View 50x35 Zoom Use 0% Tactical HUD 1 Map Filters NONE Filters NONE Steam 1 RUN: db6f0382-bded-4e97-8377-50d8666b00f6